{"text_format":"1","workbook":"xlsx","n_sheets":19,"sheets":["18005 (2)","Reference","Master Sheet","15003","1","15004","15005","15006","15007","15008","15009","15000","15011","15020","15021","15019","15022","15025","18005"],"not_rendered":{"charts":0,"images":1,"macros":1,"external_links":0,"defined_names":1,"comments":0,"pivot_tables":0},"unopened":[],"bounds":{"document_bytes":16777216,"sheet_cells":100000,"rows_first":2000,"rows_last":500,"rows_between":2000,"halvings":0,"cell_chars":16384,"cell_head_chars":4096},"cells_cut":0,"cells_raw":0,"read":"whole","date_system":"1900"}

{"sheet":"18005 (2)","index":0,"n_rows":45,"n_cols":10,"rows_kept":45,"cut":false,"hidden":false,"merged":[[4,0,4,1],[4,2,4,4],[4,6,4,7],[4,8,4,9],[5,0,6,0],[5,1,6,1],[5,2,5,4],[5,5,5,7],[5,8,6,8],[5,9,6,9]]}
[]
[]
[null,null,null,null,null,null,null,null,"حد الطلب : ",{"$f":"VLOOKUP(G5,Reference!A:G,4,FALSE)/8","v":0}]
["اسم المجموعه /",{"$f":"VLOOKUP(G5,Reference!A:G,2,FALSE)","v":"شحوم"},null,null,null,null,null,null,"كمية الطلب : ",{"$f":"+J3*2","v":0}]
["اسم الصنف :",null,{"$f":"VLOOKUP(G5,Reference!A:G,3,FALSE)","v":"شحم موبيل MP"},null,null,"كود الصنف : ",18005]
["رقم المستند","التاريخ","الــــــــــــــــــوارد",null,null,"المنصــــــــــــــــــرف",null,null,"الرصيـــــد","ملاحظــــــات"]
[null,null,"2018-01-01",10,20,3,8,3]
[null,null,null,null,null,null,null,null,1]
[null,null,null,null,null,null,null,null,1]
[null,null,null,null,null,null,null,null,{"$f":"+(I9+C10+D10+E10)-F10-G10-H10","v":1}]
[null,null,null,null,null,null,null,null,1]
[null,null,null,null,null,null,null,null,1]
[null,null,null,null,null,null,null,null,1]
[null,null,null,null,null,null,null,null,1]
[null,null,null,null,null,null,null,null,1]
[null,null,null,null,null,null,null,null,1]
[null,null,null,null,null,null,null,null,1]
[null,null,null,null,null,null,null,null,1]
[null,null,null,null,null,null,null,null,1]
[null,null,null,null,null,null,null,null,1]
[null,null,null,null,null,null,null,null,1]
[null,null,null,null,null,null,null,null,1]
[null,null,null,null,null,null,null,null,1]
[null,null,null,null,null,null,null,null,1]
[null,null,null,null,null,null,null,null,1]
[null,null,null,null,null,null,null,null,1]
[null,null,null,null,null,null,null,null,1]
[null,null,null,null,null,null,null,null,1]
[null,null,null,null,null,null,null,null,1]
[null,null,null,null,null,null,null,null,1]
[null,null,null,null,null,null,null,null,1]
[null,null,null,null,null,null,null,null,1]
[null,null,null,null,null,null,null,null,1]
[null,null,null,null,null,null,null,null,1]
[null,null,null,null,null,null,null,null,1]
[null,null,null,null,null,null,null,null,1]
[null,null,null,null,null,null,null,null,1]
[null,null,null,null,null,null,null,null,1]
[null,null,null,null,null,null,null,null,1]
[null,null,null,null,null,null,null,null,1]
[null,null,null,null,null,null,null,null,1]
[null,null,null,null,null,null,null,null,1]
[null,null,null,null,null,null,null,null,1]
[null,null,null,null,null,null,null,null,1]
[null,null,null,null,null,null,null,null,1]

{"sheet":"Reference","index":1,"n_rows":1639,"n_cols":9,"rows_kept":1639,"cut":false,"hidden":false,"merged":[]}
["الكود","المجموعه","البيان","الوحده","الوارد ","منصرف ","الرصيد",null,"أسماء الصفحات"]
[]
[1001,"دليل اصناف بنود تكاليف قطاع صناعى","رمل",null,null,null,null,null,1]
[1002,"دليل اصناف بنود تكاليف قطاع صناعى","سن 6 ",null,null,null,null,null,15003]
[1000,"دليل اصناف بنود تكاليف قطاع صناعى","سن 1",null,null,null,null,null,15004]
[1004,"دليل اصناف بنود تكاليف قطاع صناعى","توريد مياه فقط",null,null,null,null,null,15005]
[1003,"دليل اصناف بنود تكاليف قطاع صناعى","اعمال نقل مياة",null,null,null,null,null,15006]
[null,"مجموعة","زيوت ووقود",null,null,null,null,null,15007]
[null,"مجموعة","زيوت",null,null,null,null,null,15008]
[15003,"زيوت","زيت باور مرسيدس 1 كجم",null,null,null,null,null,15009]
[15004,"زيوت","زيت باور عادى 1 كجم",null,null,null,null,null,15000]
[15005,"زيوت","زيت دبرياج مرسيدس 1 كجم",null,null,null,null,null,15011]
[15006,"زيوت","زيت تروس 90W80 ",null,null,null,null,null,15020]
[15007,"زيوت","زيت موبيل سوبر mobile 20w50 ",null,null,null,null,null,15021]
[15008,"زيوت","زيت موبيل SH15w40   (20 لتر )",null,null,null,null,null,15019]
[15018,"زيوت","زيت ديلو فضي ",null,null,null,null,null,15022]
[15001,"زيوت","زيت 15W- 40 ",null,null,null,null,null,15025]
[15009,"زيوت","زيت رمادى  SHC( 20 كجم ) ",null,null,null,null,null,18005]
[15000,"زيوت","زيت هيدروليك 68"]
[15010,"زيوت","زيت HYPA"]
[15011,"زيوت","زيت تسخين 100  ( محطات الاسفلت ) 0 "]
[15020,"زيوت","زيت موبيل سوبر 1000"]
[15021,"زيوت","زيت موبيل دلفاك shc-5 w 40."]
[15019,"زيوت","زيت موبيل جركن 20 لتر  15w40"]
[15022,"زيوت","زيت فتيس TDT50 "]
[15025,"زيوت","زيت MX 15-40 دلفاك"]
[null,"زيوت","زيت موبيل دلفاك shc-5 w 40.-"]
[15017,"زيوت","زيت تروس "]
[15014,"زيوت","زيت موبيل دلفاك shc-5 w 40"]
[15015,"زيوت","زيت موبيل 90w80"]
[15016,"زيوت","زيت فتيس كاتر بلر 50"]
[15013,"زيوت","زيت موبيل mx 20 w -40"]
[15023,"زيوت","زيت باكم فرامل "]
[null,"مجموعة","اكواد ملغيه N"]
[15024,"اكواد ملغيه N","-"]
[null,"مجموعة","سولار"]
[1,"سولار","سولار"]
[2,"سولار","جركن نفط "]
[null,"مجموعة","شحوم"]
[18005,"شحوم","شحم موبيل MP"]
[18000,"شحوم","شحم موبيل جريس (اكسون موبيل )"]
[18002,"شحوم","شحم مصر للبترول"]
[18003,"شحوم","شحم الاهلية"]
[18001,"شحوم","شحم موبيل "]
[18010,"شحوم","شحم موبيل M"]
[18004,"شحوم","شحم موبيلكس (شحم متعدد الاغراض )  EP 1"]
[18006,"شحوم","شحم اسو ISO"]
[null,"مجموعة","قطع غيار"]
[null,"مجموعة","قطع غيار سيارات "]
[20006,"قطع غيار سيارات ","كوع 90 درجة 5.5 بوصة"]
[20007,"قطع غيار سيارات ","وش فانوس امامى شمال"]
[20008,"قطع غيار سيارات ","وش فانوس امامى "]
[20009,"قطع غيار سيارات ","سير عرض 50 سم 2 تيلة"]
[20005,"قطع غيار سيارات ","سير ميكسر"]
[20003,"قطع غيار سيارات ","خرطوم هواء"]
[20004,"قطع غيار سيارات ","فانوس خلفى خلاطة يمين"]
[20002,"قطع غيار سيارات ","فتيل مزراب وكوريك"]
[20001,"قطع غيار سيارات ","ماسورة بامب 5.5 مقاسات"]
[20012,"قطع غيار سيارات ","ريلات كتاوات"]
[20017,"قطع غيار سيارات ","فلانشة"]
[20018,"قطع غيار سيارات ","رولمان بلى 30315"]
[20019,"قطع غيار سيارات ","رولمان بلى 32312"]
[20021,"قطع غيار سيارات ","ريشة مساحه"]
[20027,"قطع غيار سيارات ","رامة بامب 250 شيفينج"]
[20028,"قطع غيار سيارات ","كاوتشة قلاب"]
[20029,"قطع غيار سيارات ","طبق كاوتش"]
[20030,"قطع غيار سيارات ","جلبة نحاس وش قلاب"]
[20031,"قطع غيار سيارات ","طقم سيل سلندر 60 ملى"]
[20032,"قطع غيار سيارات ","وش قلاب بودز ماستر"]
[20033,"قطع غيار سيارات ","رامة 230 بودز ماستر"]
[20034,"قطع غيار سيارات ","واير اكسلتير حلة خلاطة"]
[20024,"قطع غيار سيارات ","مسطرة اكصدام"]
[20025,"قطع غيار سيارات ","سيل كلوى بامب"]
[20026,"قطع غيار سيارات ","بستم بوابة اسمنت"]
[20038,"قطع غيار سيارات ","حشو بوابة الميكسر"]
[20035,"قطع غيار سيارات ","قاعدة دفرانسيل خلفى + كاوتشة"]
[20036,"قطع غيار سيارات ","كوع حديد 45 درجة 3 بوصة"]
[20039,"قطع غيار سيارات ","قاعدة استبن"]
[20111,"قطع غيار سيارات ","فانوس مدور شبورة"]
[20112,"قطع غيار سيارات ","غطاء تنك مرسيدس"]
[20113,"قطع غيار سيارات ","فردة كلاكس 724"]
[20114,"قطع غيار سيارات ","حلقة احتكاك بودز ماستر"]
[20124,"قطع غيار سيارات ","افيز 1/2 بوصة "]
[20072,"قطع غيار سيارات ","مروحة كاوتش قمع حلة"]
[20073,"قطع غيار سيارات ","جوان كاوتش"]
[20074,"قطع غيار سيارات ","كاوتشات"]
[20071,"قطع غيار سيارات ","رقعة كاوتش"]
[20069,"قطع غيار سيارات ","حشو فلتر جاز"]
[20055,"قطع غيار سيارات ","حشو فلتر جاز فنشر"]
[20066,"قطع غيار سيارات ","حشو فلتر زيت 72"]
[20037,"قطع غيار سيارات ","جوان مانع تسريب بامب"]
[20040,"قطع غيار سيارات ","وش فانوس خلفى"]
[20042,"قطع غيار سيارات ","طمبورة خلفية ماهندرا"]
[20043,"قطع غيار سيارات ","سير فنشر"]
[20041,"قطع غيار سيارات ","سير مروحة مرسيدس"]
[20046,"قطع غيار سيارات ","مجموعة قلاب "]
[20047,"قطع غيار سيارات ","رولمان بلى 210"]
[20044,"قطع غيار سيارات ","رولمان بلى 6205"]
[20045,"قطع غيار سيارات ","كرسى رولمان بلى"]
[20052,"قطع غيار سيارات ","حشو فلتر جاز دبابة"]
[20205,"قطع غيار سيارات ","رولمان بلي رقم UC215S4H"]
[20206,"قطع غيار سيارات ","طقم اصلاح طلمبه مياه "]
[20207,"قطع غيار سيارات ","طقم اصلاح طلمبه جاز "]
[20210,"قطع غيار سيارات ","عمود جلبه مياه "]
[20211,"قطع غيار سيارات ","لوكسيت "]
[20212,"قطع غيار سيارات ","جوان طلمبه مياه "]
[20222,"قطع غيار سيارات ","بليه طلمبه مياه "]
[20204,"قطع غيار سيارات ","سير مروحه لودر 8pk2525"]
[20200,"قطع غيار سيارات ","رولمان بلي KSF 40"]
[20201,"قطع غيار سيارات ","تيله داخليه 62 مم "]
[20202,"قطع غيار سيارات ","مارش دويتوس 1/2 مارس "]
[20203,"قطع غيار سيارات ","بليه صيني 6211 "]
[20134,"قطع غيار سيارات ","رقعة لحام كاوتش خارجى P0N6"]
[20135,"قطع غيار سيارات ","رقعة لحام كاوتش خارجى P0N5"]
[20136,"قطع غيار سيارات "," رقعه الماني PN04"]
[20137,"قطع غيار سيارات ","علبة رقع 3المانى P0N"]
[20138,"قطع غيار سيارات ","رقعة 110 T0L"]
[20139,"قطع غيار سيارات ","رقعة 116 T0L"]
[20140,"قطع غيار سيارات ","-"]
[20141,"قطع غيار سيارات ","علبة خابور طويل"]
[20142,"قطع غيار سيارات ","رقعة 120 T0L"]
[20143,"قطع غيار سيارات ","رولة لحام كاوتش"]
[20144,"قطع غيار سيارات ","صامولة عجل سن ناعم"]
[20145,"قطع غيار سيارات ","فورتيونر امامى تربلكس اخضر * اخضر"]
[20146,"قطع غيار سيارات ","قطع غيار مخزن داخلى"]
[20147,"قطع غيار سيارات ","ضاغط 7.5 ح 3 فاز 500 لتر"]
[20148,"قطع غيار سيارات ","ضاغط 4 ح 2 فاز 300 لتر"]
[20115,"قطع غيار سيارات ","طقم حشو الجلبة الخلفية ماستر "]
[20116,"قطع غيار سيارات ","سندوتش سيل حلقة "]
[20117,"قطع غيار سيارات ","ماسورة خط بامب مسلوبة 5.5\"/6\"120سم"]
[20125,"قطع غيار سيارات ","نبل 9×22مم"]
[20127,"قطع غيار سيارات ","نبل 22مم"]
[20128,"قطع غيار سيارات ","طقم بلابل 22مم"]
[20129,"قطع غيار سيارات ","طاقية 24 صينى"]
[20126,"قطع غيار سيارات ","سيرعرض80سم شيفرون"]
[20130,"قطع غيار سيارات ","كارت فيوز بامب "]
[20131,"قطع غيار سيارات ","طقم بوجيهات"]
[20132,"قطع غيار سيارات ","طقم سلك بوجيهات"]
[200273,"قطع غيار سيارات ","جوان كوليه "]
[200275,"قطع غيار سيارات ","طقم هوايه "]
[200276,"قطع غيار سيارات ","كلاكس 24 فولت "]
[391482,"قطع غيار سيارات ","بلف سيز T6  /AB  724"]
[20245,"قطع غيار سيارات ","رقعه لحام TL115 "]
[20246,"قطع غيار سيارات ","علبه سيليسيون الماني 650"]
[20247,"قطع غيار سيارات ","بلف نحاس تيوبلس "]
[20243,"قطع غيار سيارات ","بلف هواء "]
[20244,"قطع غيار سيارات ","ابره  هواء "]
[200249,"قطع غيار سيارات ","استيك فلتر فتيس "]
[200250,"قطع غيار سيارات ","هوايه ماتور "]
[200251,"قطع غيار سيارات ","استك فلتر مغناطيس "]
[200252,"قطع غيار سيارات ","استك هوايه "]
[200253,"قطع غيار سيارات ","طقم جوان كلوب cpt"]
[200254,"قطع غيار سيارات ","طقم جوان سفلي CTP"]
[200255,"قطع غيار سيارات ","طقم جوان امامي CTP"]
[200256,"قطع غيار سيارات ","طقم جوان خلفي CTP"]
[200257,"قطع غيار سيارات ","طلمبه زيت ماتور استيراد "]
[200258,"قطع غيار سيارات ","طقم جاويت شكمان "]
[200259,"قطع غيار سيارات ","جوان طلمبه جاز "]
[20248,"قطع غيار سيارات ","واير قماش 6 طن /8م"]
[20223,"قطع غيار سيارات ","سير 1600 × 17 تايواني "]
[20224,"قطع غيار سيارات ","بلف فتيس"]
[20225,"قطع غيار سيارات ","نبل حديد 27/30"]
[20226,"قطع غيار سيارات ","ترموستات حراري "]
[20227,"قطع غيار سيارات ","كارتيره زيت "]
[20228,"قطع غيار سيارات ","كاوتشه منافول "]
[20229,"قطع غيار سيارات ","زرار زجاج اكتريس يمين "]
[20240,"قطع غيار سيارات ","طقم لنيه نحاس قصيره 5T8367HD"]
[20241,"قطع غيار سيارات ","طقم لنيه فيبر 128-9654"]
[20242,"قطع غيار سيارات ","شمبر نعمان "]
[20086,"قطع غيار سيارات ","بوابة مزراب"]
[20083,"قطع غيار سيارات ","لمبة فانوس"]
[20079,"قطع غيار سيارات ","سير 2650"]
[20080,"قطع غيار سيارات ","سير  فيتنامى 2275"]
[20081,"قطع غيار سيارات ","سير 1050"]
[20082,"قطع غيار سيارات ","سير فيتنامى 2285"]
[20076,"قطع غيار سيارات ","كاوتش سندات"]
[20077,"قطع غيار سيارات ","رولمان بلى 6204 KS"]
[20078,"قطع غيار سيارات ","جلبة مزراب محطه"]
[20084,"قطع غيار سيارات ","فانوس خلفى اكتروس كامل شمال"]
[20085,"قطع غيار سيارات ","فانوس خلفى اكتروس كامل يمين"]
[20087,"قطع غيار سيارات ","بطارية الوطنية"]
[20088,"قطع غيار سيارات ","طقم دواسة بعدد 2 قطعه"]
[20093,"قطع غيار سيارات ","فلنشة 5.5 بوصة"]
[20094,"قطع غيار سيارات ","شداد مزراب"]
[20095,"قطع غيار سيارات ","خرطوم 2 بوصة كاوتش"]
[20096,"قطع غيار سيارات ","استبن اطار خلاطة"]
[20075,"قطع غيار سيارات ","ماسورة بامب"]
[20000,"قطع غيار سيارات ","اطار مضخة بالجنط"]
[200301,"قطع غيار سيارات ","فيشه كهرباء 3 شوكه "]
[200302,"قطع غيار سيارات ","كتاوت نور 12 فولت "]
[200303,"قطع غيار سيارات ","كلبس +غطاء "]
[200299,"قطع غيار سيارات ","بكره حله خلاطه "]
[200300,"قطع غيار سيارات ","طلمبه مياه خلاطه "]
[200305,"قطع غيار سيارات ","طقم اصلاح فورش اكترس كامل "]
[200306,"قطع غيار سيارات ","كلبس جلبه فورش اكتروس "]
[200304,"قطع غيار سيارات ","كتاوت علبه فيوز 5 رجل "]
[200307,"قطع غيار سيارات ","اطار كوتش 3نجوم 24/1400"]
[200308,"قطع غيار سيارات ","اويل سيل (اورنج)"]
[20292,"قطع غيار سيارات ","سير فلتر فتيس استك"]
[200292,"قطع غيار سيارات ","غطاء ريداتير "]
[200293,"قطع غيار سيارات ","رولمان بلي 6305"]
[200289,"قطع غيار سيارات ","فيوز A5 امبير "]
[200290,"قطع غيار سيارات ","فانوس خلفي شيفروليه شاسيه طويل "]
[200291,"قطع غيار سيارات ","كارته فينشر IC"]
[200295,"قطع غيار سيارات ","قاعده فلتر هواء مكثف "]
[200296,"قطع غيار سيارات ","كربيراتير سياره ميكروباض صيني "]
[200297,"قطع غيار سيارات ","سير مروحه جريدر (2875) "]
[200298,"قطع غيار سيارات ","طقم بستم حشو لم كامل (الجمل) لودر"]
[200283,"قطع غيار سيارات ","دينمو لودر G72 استيراد"]
[200284,"قطع غيار سيارات ","بلف فرامل هواء جريدر"]
[200285,"قطع غيار سيارات ","سلونيد234666"]
[200286,"قطع غيار سيارات ","كويل فتيس G938"]
[200287,"قطع غيار سيارات ","شداد لودر MG"]
[200288,"قطع غيار سيارات ","كوعه مياه لودر استيراد"]
[200294,"قطع غيار سيارات ","لنيه فيبر للجريدر "]
[200279,"قطع غيار سيارات ","مرايا شيفينج "]
[200280,"قطع غيار سيارات ","لنيه فيبر 333-0960"]
[200281,"قطع غيار سيارات ","لنيه نحاس طويله 5T8367H.D"]
[20277,"قطع غيار سيارات ","فبرة اكصدام نيسان 2016"]
[20188,"قطع غيار سيارات ","طلمبه زيت ماكينه CAT ( ID388-7285 )0"]
[200277,"قطع غيار سيارات ","رولمان بلي رقم 48548 "]
[200278,"قطع غيار سيارات ","هزاز EGT-25"]
[20176,"قطع غيار سيارات ","حشو كرسي ايطالي كوجي "]
[20189,"قطع غيار سيارات ","فتيس جليدرول CAT "]
[20196,"قطع غيار سيارات ","اكشه فتيس امريكي امريكي ( ID000BXMO)"]
[20197,"قطع غيار سيارات ","كريك 30 طن "]
[20198,"قطع غيار سيارات ","ظافر  بولدوزر"]
[200309,"قطع غيار سيارات ","مقياس تنك مياه خلاطه "]
[200327,"قطع غيار سيارات ","طقم دبرياج خلاطه اكترس (اسطوانه الماني )"]
[20295,"قطع غيار سيارات ","مسطر دبرياج نيسان"]
[20296,"قطع غيار سيارات ","مسطر عمود نيسان"]
[200310,"قطع غيار سيارات ","سير مروحه خلاطه اكترس 9pk2835es"]
[200311,"قطع غيار سيارات ","كاتم صوت نحاس 1/8 صيني "]
[200312,"قطع غيار سيارات ","كاتم صوت نحاس 1/4 صيني "]
[null,"قطع غيار سيارات ","بلف 2.50 ×1 1/4 كويل  220 فولت "]
[200313,"قطع غيار سيارات ","رولمان بلي B17× 52× 17 "]
[20302,"قطع غيار سيارات ","بليه ياباني 6204"]
[200314,"قطع غيار سيارات ","ميكانيكل سيل 20مم"]
[20303,"قطع غيار سيارات ","جلبة كردان"]
[200315,"قطع غيار سيارات ","واير صلب واحد بوصه "]
[200316,"قطع غيار سيارات ","حساس ضربات بوتزماستر 17142"]
[200317,"قطع غيار سيارات ","كاوتشه قلاب  يوترماستر "]
[200318,"قطع غيار سيارات ","حساس بلف رباعي اكتر س A0045455414"]
[200319,"قطع غيار سيارات ","قربه مياه سوزوكي ياباني "]
[200320,"قطع غيار سيارات ","رولمان بلي 63030 SKF ياباني "]
[200321,"قطع غيار سيارات ","رولمان بلي  63030 FAG"]
[200322,"قطع غيار سيارات ","كاسيت سياره "]
[200323,"قطع غيار سيارات ","سماعه باب سياره "]
[null,"قطع غيار سيارات ","سير BX2275 تيلاندي"]
[200324,"قطع غيار سيارات ","كساحة اكصدام نيسان"]
[200325,"قطع غيار سيارات ","فانوس نيسان امامي يمين "]
[200326,"قطع غيار سيارات ","باب خلفي شمال نيسان دبل كابينة بدون فرش"]
[200329,"قطع غيار سيارات ","جلبة نحاس HPG"]
[200328,"قطع غيار سيارات ","جلبة هارد HPG"]
[391476,"قطع غيار سيارات ","سيل سوستة ايطالي"]
[391479,"قطع غيار سيارات ","استك  SP36"]
[391480,"قطع غيار سيارات ","استك  SH 67"]
[391481,"قطع غيار سيارات ","كربراتير ميكروباص صيني"]
[20099,"قطع غيار سيارات ","بلف كنترول  ريئسى mp"]
[20098,"قطع غيار سيارات ","كاوتشة قلاب 243632 - للبامب"]
[20097,"قطع غيار سيارات ","سير فيتنامى 41-A"]
[20103,"قطع غيار سيارات ","طقم تيل فرامل امامى  882271"]
[20107,"قطع غيار سيارات ","بطارية ريموت بوتز ماستر ( بامب)"]
[20108,"قطع غيار سيارات ","ماسورة خط بامب مسلوبة 6/5.5 بوصة 157سم"]
[20109,"قطع غيار سيارات ","كوز فرامل اكتروس خلفى "]
[20110,"قطع غيار سيارات ","طقم تيل فرامل اكتروس خلفى882272"]
[20149,"قطع غيار سيارات ","طقم قطاش بطارية"]
[20150,"قطع غيار سيارات ","صابع بطارية"]
[20154,"قطع غيار سيارات ","طلمبة مياه سوزوكى"]
[20155,"قطع غيار سيارات ","جلدة خلاطة"]
[20173,"قطع غيار سيارات ","كوع 90 -10 ً مقفوله "]
[20174,"قطع غيار سيارات ","فيرت بطاريه مصري "]
[20175,"قطع غيار سيارات ","فيوز عريض -كنزر "]
[20177,"قطع غيار سيارات ","وش سلندر ماكينه اتونير (محرك ديوتس 2بستم تبريد هواء)"]
[20178,"قطع غيار سيارات ","ترس فيلام "]
[20179,"قطع غيار سيارات ","كرنك ماكينه (محرك ديوتس 2 بستم تبريد هواء )"]
[20180,"قطع غيار سيارات ","شمبر ماكينه ( ماكينه ديوتس 2 بستم تبريد هواء )"]
[20181,"قطع غيار سيارات ","بستم ماكينه  ( ماكينه ديوتس 2 بستم تبريد هواء )"]
[20182,"قطع غيار سيارات ","وش تقسيم خارجي ( ماكينه ديوتس 2 بستم تبريد هواء ) "]
[20183,"قطع غيار سيارات ","عمه كامله  ( ماكينه ديوتس 2 بستم تبريد هواء ) اتونير"]
[20184,"قطع غيار سيارات ","وش تقسيم  داخلي ( ماكينه ديوتس 2 بستم تبريد هواء ) "]
[20185,"قطع غيار سيارات ","شكمان  ( ماكينه ديوتس 2 بستم تبريد هواء ) "]
[20186,"قطع غيار سيارات ","شكمان مانوفول ( ماكينه ديوتس 2 بستم تبريد هواء ) "]
[20187,"قطع غيار سيارات ","كرتيره ( ماكينه ديوتس 2 بستم تبريد هواء ) "]
[20169,"قطع غيار سيارات ","رولمان بلي 630422 SKF"]
[20171,"قطع غيار سيارات ","اويل سيل مجموعه خلفيه S000241742"]
[20172,"قطع غيار سيارات ","سير قلاب K000900110"]
[20170,"قطع غيار سيارات ","كوتشه شداد"]
[20157,"قطع غيار سيارات ","طلبمة مياه هيبرو"]
[20158,"قطع غيار سيارات ","بطارية ريموت شيفنج"]
[20159,"قطع غيار سيارات ","طقم حشو طلمبة مياة خلاطه"]
[20160,"قطع غيار سيارات ","علبة اورينجات كات"]
[20161,"قطع غيار سيارات ","كوز هواء اكتروس"]
[20162,"قطع غيار سيارات ","استيك كارتيرة اكتروس"]
[20163,"قطع غيار سيارات ","قربة مياه اكتروس بالحساس"]
[20164,"قطع غيار سيارات ","جلبة هارد كروم"]
[20165,"قطع غيار سيارات ","فلانشة خط"]
[20166,"قطع غيار سيارات ","خرطوم خرسانة واحد فلانشة 4 متر"]
[20152,"قطع غيار سيارات ","رقعة كاوتش خارجى هندى"]
[20153,"قطع غيار سيارات ","رقعة كاوتش خارجى PN4"]
[20156,"قطع غيار سيارات ","كاتم صوت 1/2"]
[20167,"قطع غيار سيارات ","طقم حشو بستم الاسي"]
[20168,"قطع غيار سيارات ","بول كاب "]
[null,"مجموعة","فلاتر"]
[null,"مجموعة","فلاتر هواء"]
[20022,"فلاتر هواء","فلتر هواء مرسيدس مروحة"]
[20023,"فلاتر هواء","فلتر هواء 160 فيات"]
[20020,"فلاتر هواء","فلتر هواء دراير مرسيدس"]
[7120,"فلاتر هواء","فلتر هواء 7120"]
["AF25723-24","فلاتر هواء","فلتر هواء AF25723-24"]
[20048,"فلاتر هواء","طقم فلتر هواء جليدر "]
[8283,"فلاتر هواء","فلتر هواء 8283"]
["A0004300969","فلاتر هواء","فلتر هواء A0004300969"]
[200274,"فلاتر هواء","فلتر هواء اكترس غبور H اصلي "]
[20101,"فلاتر هواء","فلتر هواء نيسان "]
[20090,"فلاتر هواء","فلتر هواء اكترس مربع MA3428"]
[20050,"فلاتر هواء","فلتر هواء G0273-74"]
[20051,"فلاتر هواء","فلتر هواء يوماج 050821147"]
[20306,"فلاتر هواء","فلتر هواء دبابة E-MaX"]
[20287,"فلاتر هواء","فلتر هواء فولفو "]
[20091,"فلاتر هواء","فلتر هواء دبابه 9794457000 - 8 "]
[20293,"فلاتر هواء","فلتر مكثف هواء - جريدر"]
[null,"مجموعة","فلاتر زيت"]
[20015,"فلاتر زيت","فلتر زيت مرسيدس"]
[20049,"فلاتر زيت","فلتر زيت دبابة 5072200061"]
[740,"فلاتر زيت","فلتر زيت 740 "]
[20053,"فلاتر زيت","فلتر زيت 82703-16510سوزوكى "]
[20058,"فلاتر زيت","فلتر زيت  صينى"]
[20059,"فلاتر زيت","فلتر زيت جامبو"]
[20067,"فلاتر زيت"," فلتر زيت مان E422HD86"]
[20056,"فلاتر زيت"," فلتر زيت ماهيندرا"]
["BH28831","فلاتر زيت","فلتر زيت BH28831"]
["BF842","فلاتر زيت","فلتر زيت نيسان BF842"]
[20070,"فلاتر زيت","فلتر زيت دويتش"]
[20120,"فلاتر زيت","فلتر زيت IR-1808(جريدر 14 H - مولد CAT )"]
[20106,"فلاتر زيت","فلتر زيت GN -02"]
[466634,"فلاتر زيت","فلتر زيت 466634"]
[20288,"فلاتر زيت","فلتر زيت LF4054"]
[20286,"فلاتر زيت","فلتر زيت فولفو "]
[20121,"فلاتر زيت","فلتر زيت w2327"]
[20276,"فلاتر زيت","فلتر زيت اكترس برنان  E502H02D121"]
[20270,"فلاتر زيت","فلتر زيت CAT كود IR0734"]
[20122,"فلاتر زيت","فلتر زيت IR -0716 CAT"]
[309,"فلاتر زيت","فلتر زيت 309"]
[20294,"فلاتر زيت","فلتر زيت ميكروباص"]
[20271,"فلاتر زيت","فلتر زيت دايو "]
[20104,"فلاتر زيت","فلتر زيت BD325 "]
[20289,"فلاتر زيت","فلتر زيت LF691A"]
[20105,"فلاتر زيت","فلتر زيت IR0739 "]
[20102,"فلاتر زيت","فلتر زيت 7w2397 "]
["E500HD129","فلاتر زيت","فلتر زيت E500HD129"]
[null,"مجموعة","فلاتر جاز"]
[20010,"فلاتر جاز","فلتر تانك بامب"]
[20011,"فلاتر جاز","فلتر بوم بامب"]
[20013,"فلاتر جاز","فلتر فاصل مرسيدس"]
[20014,"فلاتر جاز","فلتر جاز مرسيدس"]
[20063,"فلاتر جاز","فلتر فاصل دبابة 80972889470"]
[20057,"فلاتر جاز"," فلتر جاز دبابة 8094448940"]
[20068,"فلاتر جاز","فلتر جاز مان VSCOL"]
[20060,"فلاتر جاز","فلتر جاز نيسان BF813F"]
[20061,"فلاتر جاز","فلتر فاصل نيسان SPFC235"]
[20054,"فلاتر جاز","فلتر جاز ماهندرا"]
["FF167","فلاتر جاز","فلتر جاز FF167"]
["FF5039","فلاتر جاز","فلتر جاز FF5039"]
[25084,"فلاتر جاز","فلتر تانك بوتز ماستر"]
["ESF006","فلاتر جاز","فلتر فاصل ESF006"]
[20089,"فلاتر جاز","فلتر انترميكس"]
[20195,"فلاتر جاز","فلتر جاز IR-0749 CAT"]
[20297,"فلاتر جاز","فلتر  فاصل جاز  CAT 133-5673"]
[20260,"فلاتر جاز","فلتر كوبايه فاصل CAT كود M2341"]
[20281,"فلاتر جاز","فلتر جاز اكترس H"]
[20283,"فلاتر جاز","فلتر فاصل جاز مان E422KPD98"]
[20250,"فلاتر جاز","فلتر فلولفو  فاصل جاز sf8434"]
[20305,"فلاتر جاز","فلتر جاز دبابة تصدير 2339"]
[20300,"فلاتر جاز","فلتر IR1804-BF2925"]
[20282,"فلاتر جاز","فلتر فاصل جاز فولفو "]
[20100,"فلاتر جاز","فلتر فاصل مياه"]
["AS266","فلاتر جاز","فلتر جاز AS266"]
["E500KP02D36","فلاتر جاز","فلتر جاز E500KP02D36"]
["R90-MER-01","فلاتر جاز","فلتر فاصل R90-MER-01 اكترس "]
[" A000302","فلاتر جاز","فلتر فاصل A000302"]
[20190,"فلاتر جاز","فلتر جاز كونتال مان"]
[20191,"فلاتر جاز","فلتر مربع مان صينى"]
[20192,"فلاتر جاز","فلتر زيت مان كونتال"]
[20290,"فلاتر جاز","فلتر جاز BF7681"]
[25301,"فلاتر جاز","فلتر فاصل جاز PL420"]
[20301,"فلاتر جاز","فلتر حشو P559740"]
[20194,"فلاتر جاز","فلتر جاز p551712"]
[20199,"فلاتر جاز","فلتر جاز IR-0750 (CAT)0"]
[null,"مجموعة","اطارات جديده"]
[null,"اطارات جديده","اطار كوتش نقل تيوبليس ارمسترونج مقاس315/80/22.5"]
[351031,"اطارات جديده","اطار كوتش 2.50 / 70 /15 R"]
[351032,"اطارات جديده","اطار كاوتش نقل 315-80- 2205 "]
[25062,"اطارات جديده","فردة كاوتش لودر"]
[351033,"اطارات جديده","اطار كوتش مقاس R14/75/205"]
[351034,"اطارات جديده","اطار كوتش 75-70-12 بريدجيستون"]
[351035,"اطارات جديده","اطار كاوتش 750 × 16 × 24 "]
[351036,"اطارات جديده","اطار كوتش 17.50 × 25 "]
[351037,"اطارات جديده","اطار كوتش مقاس 195-15-8"]
[351038,"اطارات جديده","اطار كوتش 175 "]
[351039,"اطارات جديده","اطار كوتش مقاس 215-15-8 "]
[351040,"اطارات جديده","كاوتش داخلي "]
[null,"اطارات جديده","كاوتش جريدر 14 h ماركه ترينجل تيوبلس 2 نجمه"]
[null,"اطارات جديده","اطار سيارات ماركه بريدجستون"]
[null,"مجموعة","قطع غيار معدات"]
[null,"مجموعة","قطع غيار معدات"]
[25005,"قطع غيار معدات","كابل بلدوزر"]
[25006,"قطع غيار معدات","سربنتينه هواء كومبروسر"]
[25003,"قطع غيار معدات","ظفر بلدوزر"]
[25004,"قطع غيار معدات","ظفر لودر 950H بالبنز "]
[25016,"قطع غيار معدات","رامة 230  سيفا"]
[25038,"قطع غيار معدات","قاعدة فنشر"]
[25037,"قطع غيار معدات","خرطوم مولد 1/2 بوصة"]
[25035,"قطع غيار معدات","بنز بستم طبلية بلدوزر صغير"]
[25036,"قطع غيار معدات","بنز بستم طبلية بلدوزر كبير"]
[25049,"قطع غيار معدات","فرشة اسفلت"]
[25087,"قطع غيار معدات","حشو فلتر مولد بيركنز"]
[25042,"قطع غيار معدات","سير بلدوزر"]
[25044,"قطع غيار معدات","بنز لودر بدون تيلة"]
[25045,"قطع غيار معدات","مسمار شفرة جريدر"]
[25043,"قطع غيار معدات","بنز بلدوزر بالتيلة"]
[25041,"قطع غيار معدات","بنز لودر بالتيلة"]
[25039,"قطع غيار معدات","قاعدة حجر هراس"]
[25048,"قطع غيار معدات","رولمان مكنسة "]
[35140,"قطع غيار معدات","لوح زجاج شفاف 4 مم"]
[35141,"قطع غيار معدات","بنز طرف جمل كروم الماني "]
[35142,"قطع غيار معدات","بنز ذرع جمل كروم الماني "]
[35143,"قطع غيار معدات","جلبه طرف جمل"]
[35144,"قطع غيار معدات","ذرع  جلبه "]
[35148,"قطع غيار معدات","بنز لعجله الجريدر "]
[35149,"قطع غيار معدات","سيل طلمبه مياه "]
[25106,"قطع غيار معدات","بلف شد الكاتينة"]
[25107,"قطع غيار معدات","ادبتر التشحيم"]
[25105,"قطع غيار معدات","سير عرض 100سم 5 تيلة"]
[39142,"قطع غيار معدات","لمبة واحد بولة 24 فولت"]
[25101,"قطع غيار معدات","مخراز خابور لودر"]
[25102,"قطع غيار معدات","مفتاح ابرة لودر"]
[25103,"قطع غيار معدات","مفتاح ابرة عادة"]
[25100,"قطع غيار معدات","شيك بلف 3 بوصة"]
[25104,"قطع غيار معدات","مخراز خابور عادة"]
[25099,"قطع غيار معدات","خرطوم 17.5م بالنهايات والجلبة"]
[25085,"قطع غيار معدات","شفرة جريدر 15خرم"]
[25097,"قطع غيار معدات","لمبه3شوكه"]
[25098,"قطع غيار معدات","لمبه واحد شوكه"]
[25091,"قطع غيار معدات","ظافر جريدر"]
[25092,"قطع غيار معدات","بنز ظافر جريدر"]
[25093,"قطع غيار معدات","بنز حامل ريبير بلدوزر"]
[25063,"قطع غيار معدات","سير 2240"]
[25064,"قطع غيار معدات","سير 113"]
[25065,"قطع غيار معدات","سير B 114"]
[25066,"قطع غيار معدات","سير C 206"]
[25067,"قطع غيار معدات","سير C 88"]
[25068,"قطع غيار معدات","سير B 73"]
[25069,"قطع غيار معدات","سير B 07"]
[25070,"قطع غيار معدات","سير SPA 1400"]
[25071,"قطع غيار معدات","سير SPC 2400"]
[25072,"قطع غيار معدات","سير SPC 5300"]
[25073,"قطع غيار معدات","سير TS"]
[25051,"قطع غيار معدات","سير 4250"]
[25052,"قطع غيار معدات","سير 5300"]
[25053,"قطع غيار معدات","سير 53 A"]
[25054,"قطع غيار معدات","سير 27012014"]
[25055,"قطع غيار معدات","سير 83 B"]
[25056,"قطع غيار معدات","سير sp2 * 35.5"]
[25057,"قطع غيار معدات","كرسى F208J"]
[25058,"قطع غيار معدات","كرسى YC208"]
[25059,"قطع غيار معدات","كرسى B210J"]
[25060,"قطع غيار معدات","سير P114"]
[25061,"قطع غيار معدات","سير PX4517X1186"]
[25002,"قطع غيار معدات","مكنسة لودر"]
[25000,"قطع غيار معدات","موتور مهزة"]
[25001,"قطع غيار معدات","مشحمة هواء"]
[391439,"قطع غيار معدات","سير جريدر N7335"]
[391435,"قطع غيار معدات","وصله شكمان "]
[391436,"قطع غيار معدات","قرن سكينه جريدر"]
[391437,"قطع غيار معدات","جوان غطاء تلبيهان "]
[391440,"قطع غيار معدات","كوتشه صينيه هراس بوماج BW213-3"]
[391441,"قطع غيار معدات","كوتشه صينيه هراس بوماج BW213"]
[391434,"قطع غيار معدات","بوش بوتن  ( مفتاح طوارئ )"]
[35153,"قطع غيار معدات","مارش مولد "]
[35156,"قطع غيار معدات","حساس كاما"]
[35157,"قطع غيار معدات","كاركه صدر "]
[35151,"قطع غيار معدات","طلمبه جاز جريدر"]
[35152,"قطع غيار معدات","ديسك جريدر "]
[391433,"قطع غيار معدات","اسطوانه حديد وفبر جريدر "]
[391450,"قطع غيار معدات","موتور زجاج باب اكترس"]
[391442,"قطع غيار معدات","عتبه 5ملهctp"]
[391443,"قطع غيار معدات","طقم صباب KM "]
[391444,"قطع غيار معدات","طقم دابل صباب FP"]
[391445,"قطع غيار معدات","خرطوم لودر G966"]
[391446,"قطع غيار معدات","طقم سيل صباب FP"]
[391447,"قطع غيار معدات","طقم سبيله FP"]
[391448,"قطع غيار معدات","طقم جلبه نبل FP"]
[391449,"قطع غيار معدات","طقم جلبه كامه FP"]
[25111,"قطع غيار معدات","موتور قلاب p.m"]
[35127,"قطع غيار معدات","مفك عجوز قلاب "]
[35126,"قطع غيار معدات","موتور ( محرك ) 2حصان بلغاري 900 لفه 3 فاز "]
[35114,"قطع غيار معدات","لمبه 2 بول 24 فولت "]
[35115,"قطع غيار معدات","لمبه 21 وات  24 فولت "]
[35116,"قطع غيار معدات","لمبه 5 وات 24 فولت "]
[35117,"قطع غيار معدات","لمبه شبوره بدون سلك 24 فولت"]
[35118,"قطع غيار معدات","لمبه طابلون بدون كعب 24 فولت  (للعداد)"]
[25108,"قطع غيار معدات","ظافر لودر "]
[25109,"قطع غيار معدات","بنز لودر بالورده"]
[25074,"قطع غيار معدات","حماية ربير بلدوزر"]
[25075,"قطع غيار معدات","بنز حماية ربير بالتيلة"]
[391477,"قطع غيار معدات","اوفر لود شيندر"]
[391478,"قطع غيار معدات","مفتاح احادي 16 A"]
[391473,"قطع غيار معدات","ايي بوند-1270"]
[391472,"قطع غيار معدات","لمبه ليد 9 وات"]
[391469,"قطع غيار معدات","طقم شفرة بلدوزر 5 قطع"]
[391470,"قطع غيار معدات","قرن سكينة بلدوزر"]
[391468,"قطع غيار معدات","ظافر بلدوزر اسود"]
[39257,"قطع غيار معدات","شفرة جريدر 17خرم"]
[null,"قطع غيار معدات","سير 13 مشرشر"]
[391467,"قطع غيار معدات","لمبه ريشه 260 / 200 الماني 12 فولت "]
[291467,"قطع غيار معدات","لمبة 24 عدد 2شوكة"]
[391458,"قطع غيار معدات","شنطه كاتر CI"]
[391456,"قطع غيار معدات","لمبه 12 فولت "]
[391457,"قطع غيار معدات","لمبه زاويه 12 فولت "]
[391459,"قطع غيار معدات","بستم دراكسيون لودر 72"]
[391460,"قطع غيار معدات","طقم حشو بستم دراكسيون جريدر"]
[391451,"قطع غيار معدات","جلبه بسن اثني 1 ×1"]
[35133,"قطع غيار معدات","علبه اورنجات "]
[35134,"قطع غيار معدات","ستوب ليك زيرو"]
[35135,"قطع غيار معدات","لوك تايد امريكاني "]
[391455,"قطع غيار معدات","كشاف لودر كات 5108251"]
[391462,"قطع غيار معدات","كتينه لفخد الجريدر"]
[391461,"قطع غيار معدات","كويل 12  أمبير "]
[391463,"قطع غيار معدات","طقم حشو بستم دركسيون لودر"]
[391465,"قطع غيار معدات","لمبه بدون كعب 12 فولت "]
[391466,"قطع غيار معدات","لمبه 5 وات 12 فولت "]
[391464,"قطع غيار معدات","تلبيسه لودر ايطالي خاص بلودر 950"]
[null,"مجموعة","اورنجات N"]
[25040,"اورنجات N","اويل سيل cat"]
[35136,"اورنجات N","اورنج 221×5.53"]
[35137,"اورنجات N","اورنج 227×5.53 "]
[35138,"اورنجات N","اورنج 60 × 5.53 "]
[35139,"اورنجات N","اورنج 60 × 4 "]
[35150,"اورنجات N","اورنج طلمبه مياه "]
[35147,"اورنجات N","اولسيه ماتور سكينه الجلادر مقاس (7×4733)"]
[35145,"اورنجات N","اولسيل طرف جمل "]
[35146,"اورنجات N","اولسيه ذرع مضخه "]
[391483,"اورنجات N","اويل سيل mp 605"]
[391484,"اورنجات N","اويل سيل SA/A"]
[391485,"اورنجات N","BST 2.5*15"]
[391486,"اورنجات N","اورنج OR 3.5*69"]
[391487,"اورنجات N","اورنج OR 3.5*61"]
[20230,"اورنجات N","جوان 6V8397"]
[20231,"اورنجات N","جوان 1182797"]
[20232,"اورنجات N","جوان sp7701"]
[20233,"اورنجات N","جوان 6v8676"]
[20234,"اورنجات N","جوان 359643"]
[20235,"اورنجات N","جوان 7e5555"]
[20236,"اورنجات N","جوان 404972"]
[20237,"اورنجات N","جوان 6v9027"]
[20238,"اورنجات N","جوان 1986068"]
[20239,"اورنجات N","جوان 3j1907"]
[35158,"اورنجات N","اويل سي 80×90×10"]
[35159,"اورنجات N","اويل سي 80×95×11.40"]
[200272,"اورنجات N","جوان تيل "]
[200260,"اورنجات N","جوان  W5164-7"]
[200261,"اورنجات N","جوان 1886126"]
[200262,"اورنجات N","جوان V-65048"]
[200263,"اورنجات N","جوان 2147568"]
[200264,"اورنجات N","جوان 1095313"]
[200265,"اورنجات N","جوان 6580-VL"]
[200266,"اورنجات N","جوان 7912-VE"]
[200267,"اورنجات N","جوان 1142687"]
[200268,"اورنجات N","جوان 931758"]
[200269,"اورنجات N","جوان 675063"]
[200270,"اورنجات N","جوان V6-6609"]
[200271,"اورنجات N","جوان 5309-109"]
[391438,"اورنجات N","اويل سي B.T.O"]
[35128,"اورنجات N","اورنج 110×130× 15 "]
[35129,"اورنجات N","اورنج 110×115×9.70 "]
[35130,"اورنجات N","اورنج 441"]
[35131,"اورنجات N","اورنج 177× 6.99 "]
[35132,"اورنجات N","اورنج 190×2.62 "]
[391452,"اورنجات N","اورنج 28 × 3.50"]
[391453,"اورنجات N","اورنج 57 × 3 "]
[391454,"اورنجات N","اويل سي 28 ×35 ×7 "]
[391474,"اورنجات N","اورنج OR -110*3.5"]
[391475,"اورنجات N","اورنج OR-105*3"]
[20151,"اورنجات N","اورنج 52*4"]
[25112,"اورنجات N","اويل سي 40 ×62 × 9"]
[25113,"اورنجات N","اويل سي 80×58×12"]
[35120,"اورنجات N","اورنج قلاب K00090S221"]
[35121,"اورنجات N","اويل سيل حديد امامي S000241743"]
[35122,"اورنجات N","اورنج K000905909"]
[35123,"اورنجات N","اورنج K000905757"]
[35124,"اورنجات N","اورنج K000912234"]
[35125,"اورنجات N","اورنح K000911916"]
[35119,"اورنجات N","اورنج K1029942"]
[25110,"اورنجات N","اويل سيل 34*48*8"]
[null,"مجموعة","فلاتر"]
[1902096,"فلاتر","حشو فلتر جاز مولد افيكو 1902096"]
["1R0773","فلاتر","فلتر فتيس  1R0773  "]
["225/4118","فلاتر","فلتر هيدروليك 225/4118"]
[1902095,"فلاتر","فلتر فتيس 1328876 بلدوزر"]
[1902097,"فلاتر","فلتر زيت فتيس p550523"]
[null,"مجموعة","فلاتر جاز"]
[25008,"فلاتر جاز","فلتر فاصل  caterpillar  "]
[2349,"فلاتر جاز","فلتر فاصل 2349 PT مولد افيكو"]
["1R752","فلاتر جاز","فلتر جاز 1R752"]
["1R-0749","فلاتر جاز","فلتر جاز مولد CAT 3412"]
[710,"فلاتر جاز","فلتر جاز 710"]
[8887,"فلاتر جاز","فلتر جاز هيدروليك 8887"]
[722,"فلاتر جاز","فلتر زيت هيدروليكIR0722 - "]
["HF 6177","فلاتر جاز","فلتر جاز هيدروليك HF 6177"]
[719,"فلاتر جاز","فلتر هيدروليك فتيس  I-R719"]
["CAT  1R0762","فلاتر جاز","فلتر جاز CAT  1R0762"]
[20016,"فلاتر جاز","فلتر جاز فنشر"]
[" cat  138 - 3100","فلاتر جاز","فلتر فاصل لودر كاتبيلر 906"]
["cat 4501/145","فلاتر جاز","فلتر فاصل cat 4501/145"]
[25011,"فلاتر جاز","فلتر جاز  caterpillar"]
["FS1242","فلاتر جاز","فلتر فاصل هراس بوماج BW213-3"]
[25018,"فلاتر جاز","فلتر فاصل جليدر"]
["L F F 8707","فلاتر جاز","فلتر فاصل L F F 8707"]
[1901605,"فلاتر جاز","فلتر جاز مولد افيكو"]
["FF 5272","فلاتر جاز","فلتر جاز FF 5272"]
[4415111,"فلاتر جاز"," فلتر جاز مولد بيركنز 4415111"]
[26561117,"فلاتر جاز","فلتر جاز بيركنز 26561117"]
["P550629","فلاتر جاز","فلتر جاز P550629"]
[711,"فلاتر جاز","حشو فلتر جاز 26560163"]
[712,"فلاتر جاز","فلتر جاز 1517409"]
[713,"فلاتر جاز","فلتر جاز 1383100"]
[714,"فلاتر جاز","فلتر جاز 4105 p "]
["CAT 326-1644","فلاتر جاز","فلتر فاصل  CAT 326-1644"]
[720,"فلاتر جاز","فلتر فاصل جاز BF7631"]
[723,"فلاتر جاز","فلتر فاصل FS19737"]
[724,"فلاتر جاز","فلتر جاز 1516069"]
[725,"فلاتر جاز","فلتر فاصل 2103800488"]
["1R-0753","فلاتر جاز","فلتر جاز 1R-0753"]
["1R-0751","فلاتر جاز","فلتر جاز 1R-0751"]
["CA-1328876","فلاتر جاز","فلتر فاصل CA-1328876"]
["FF5018","فلاتر جاز","فلتر جاز FF5018"]
[null,"مجموعة","فلاتر زيت"]
["1G-8878","فلاتر زيت","فلتر زيت لودر 908"]
["F L 3481","فلاتر زيت","فلتر زيت لودر فيات 130"]
[25012,"فلاتر زيت","فلتر زيت   caterpillar"]
[2654403,"فلاتر زيت"," فلتر زيت بيركنز"]
[25046,"فلاتر زيت","فلتر زيت 160 لودر"]
["P551943","فلاتر زيت","فلتر زيت P551943"]
[2654407,"فلاتر زيت","فلتر زيت بيركنز 2654407"]
[25015,"فلاتر زيت","فلتر زيت 2654403"]
[25013,"فلاتر زيت","فلتر زيت BALDWIN(B7299)0"]
[25014,"فلاتر زيت","فلتر زيت LF33133"]
[25047,"فلاتر زيت","فلتر زيت جريدر p554004"]
["1R-1808","فلاتر زيت","فلتر زيت (جريدر 14 H - مولد CAT )"]
[25132,"فلاتر زيت","فلتر زيت 21707134"]
[25133,"فلاتر زيت","فلتر زيت 21707132"]
[25130,"فلاتر زيت","فلتر زيت LF3594"]
[25131,"فلاتر زيت","فلتر زيت HF6317"]
[25090,"فلاتر زيت","فلتر زيت هيدروليك G1 8878 "]
["IR0741","فلاتر زيت","فلتر زيت هيدروليك IR0741"]
[null,"مجموعة","فلاتر هواء"]
[25007,"فلاتر هواء","فلتر هواء مولد ايفيكو"]
[25034,"فلاتر هواء","فلتر هواء هراس"]
[25033,"فلاتر هواء","فلتر هواء لودر 130 فيات"]
[26510211,"فلاتر هواء","فلتر هواء 26510211"]
["2456375/76","فلاتر هواء","فلتر هواء 2456375/76"]
[25081,"فلاتر هواء","فلتر هواء  H950 "]
[25082,"فلاتر هواء","فلتر هواء ماكينه 2015"]
[25050,"فلاتر هواء","فلتر هواء 938 g"]
[25080,"فلاتر هواء","فلتر هواء 972g"]
[25079,"فلاتر هواء","فلتر هواء بلدوزر "]
[25078,"فلاتر هواء","فلتر هواء 5636D533"]
[25077,"فلاتر هواء","فلتر هواء IR 741"]
[25083,"فلاتر هواء","فلتر هواء AF26249"]
[null,"مجموعة","اكواد لا تستخدم  (لاغي )0"]
["pt349","اكواد لا تستخدم  (لاغي )0","-"]
[1804,"اكواد لا تستخدم  (لاغي )0","---"]
[20280,"اكواد لا تستخدم  (لاغي )0","فلتر فاصل جاز اكترس -"]
[20291,"اكواد لا تستخدم  (لاغي )0","فلتر زيت هيدروليك-"]
[20193,"اكواد لا تستخدم  (لاغي )0","----"]
["1R-0739","اكواد لا تستخدم  (لاغي )0","--"]
["FL 3594","اكواد لا تستخدم  (لاغي )0","------"]
["133 - 5673","اكواد لا تستخدم  (لاغي )0","--------"]
[null,"مجموعة","بطاريات"]
[39041,"بطاريات","بطارية جافة 80 امبير "]
[39349,"بطاريات","بطارية جافه 90 امبير ACD"]
[39301,"بطاريات","بطارية جافه 150 امبير"]
[39351,"بطاريات","بطاريه ACD 150 امبير "]
[39350,"بطاريات","بطاريه 200 امبير AC"]
[39353,"بطاريات","بطاريه 100 امبير ACD"]
[39355,"بطاريات","بطاريه 150 امبير الوطنيه "]
[39356,"بطاريات","بطاريه 70 امبير الوطنيه "]
[39357,"بطاريات","بطاريه 70 امبير ACD"]
[39354,"بطاريات","بطاريه جافه 120 A "]
[39352,"بطاريات","بطارية 90 امبير الوطنية"]
[null,"مجموعة","متنوع"]
[null,"مجموعة","متنوع تجهيزات"]
[34000,"متنوع تجهيزات","ماسورة 5.5 * 3 م"]
[34005,"متنوع تجهيزات","علبة مسمار سلف دريل"]
[34002,"متنوع تجهيزات","محبس 1.5 بوصة ايطالى"]
[34003,"متنوع تجهيزات","باكو سلك لحام 4 ملى"]
[34004,"متنوع تجهيزات","سكينة كهرباء"]
[34001,"متنوع تجهيزات","لوحة كهرباء 25*30 سم"]
[34006,"متنوع تجهيزات","سديرى قاعدة حمام"]
[34007,"متنوع تجهيزات","كورة نظافة"]
[34012,"متنوع تجهيزات","مسدس غسيل "]
[34013,"متنوع تجهيزات","تجهيزة خلاطة"]
[34014,"متنوع تجهيزات","حزام تحميل"]
[34008,"متنوع تجهيزات","جلبة 3 بوصة بلاستيك"]
[34009,"متنوع تجهيزات","كوع 3 بوصة "]
[34010,"متنوع تجهيزات","جلبة 2 بوصة بلاستيك"]
[34024,"متنوع تجهيزات","لفة خرطوم 16 ملى 45 متر"]
[34021,"متنوع تجهيزات","مقشة بدون يد"]
[34089,"متنوع تجهيزات","سيليكون حرارى"]
[34088,"متنوع تجهيزات","قفل وسط"]
[34022,"متنوع تجهيزات","محبس 3/4"]
[34023,"متنوع تجهيزات","محبس 1 بوصة ايطالى"]
[34011,"متنوع تجهيزات","خرطوم اكسجين"]
[34015,"متنوع تجهيزات","لاكور تجميع مياه"]
[34016,"متنوع تجهيزات","بيبة"]
[34017,"متنوع تجهيزات","جلبة مياه بالفلانشة"]
[34018,"متنوع تجهيزات","فلانشة"]
[34019,"متنوع تجهيزات","فلانشة مياه"]
[34020,"متنوع تجهيزات","دهانات لاكيه"]
[34091,"متنوع تجهيزات","لمبة شفافة 100w"]
[34092,"متنوع تجهيزات","مقشة باليد"]
[34099,"متنوع تجهيزات","لوحة كهرباء 40*60"]
[34098,"متنوع تجهيزات","زجاجة صابون بريل"]
[34101,"متنوع تجهيزات","دهان ايبوكس131"]
[34105,"متنوع تجهيزات","شيك بلف 1 ً  ايطالى"]
[34106,"متنوع تجهيزات","محبس1بولي2لاكور"]
[34107,"متنوع تجهيزات","جلبة لحام 1 بوصة"]
[34108,"متنوع تجهيزات","T2/1لحام بولي"]
[34109,"متنوع تجهيزات","خرطوم هواء 6.5×8"]
[34110,"متنوع تجهيزات","وصلة عدلة تحويل 1/8مم"]
[34100,"متنوع تجهيزات","زجاج وش لحام"]
[34102,"متنوع تجهيزات","تنر"]
[34103,"متنوع تجهيزات","سكس بلف 1.50 بوصة"]
[34104,"متنوع تجهيزات","ماسورة بولى 1 بوصة"]
[34153,"متنوع تجهيزات","قاعده كوتش سيفا جلبه 2 بوصه 13 بار"]
[34150,"متنوع تجهيزات","تجليخ ديسك "]
[34151,"متنوع تجهيزات","تجليخ بلاطه وش "]
[34152,"متنوع تجهيزات","شد سوسته لدسك والاسطوانه "]
[34111,"متنوع تجهيزات","شيك بلف 2.50 بوصة"]
[34112,"متنوع تجهيزات","مفتاح كهرباء 3×63 A"]
[34113,"متنوع تجهيزات","لقمة مفتاح + بريزة"]
[34114,"متنوع تجهيزات","علبة خارج الحائط"]
[34115,"متنوع تجهيزات","مياه خضراء"]
[34161,"متنوع تجهيزات","لوكنيد مسمار"]
[34154,"متنوع تجهيزات","كوع حديد 3/4 ُ "]
[34159,"متنوع تجهيزات","بورده 5006 اتش بي "]
[34160,"متنوع تجهيزات","بورده 6005 اتش بي "]
[3417,"متنوع تجهيزات","جاويت 8 مللي "]
[34157,"متنوع تجهيزات","جاويت 10 مللي "]
[34156,"متنوع تجهيزات","جاويت 16 مللي "]
[34158,"متنوع تجهيزات","بلونه ماتور مياه "]
[34025,"متنوع تجهيزات","امير"]
[34026,"متنوع تجهيزات","انبوبة معجون حديد 2 * 1"]
[34028,"متنوع تجهيزات","جلبة مزراب محطه"]
[34029,"متنوع تجهيزات","مياه نار"]
[34030,"متنوع تجهيزات","الواح صاج ايكون"]
[34031,"متنوع تجهيزات","استاند حديد 4 رف 4متر * 2 متر"]
[34032,"متنوع تجهيزات","استاند حديد 4 رف 1.10 متر * 2 م"]
[34027,"متنوع تجهيزات","خرطوم مياه عادى"]
[34033,"متنوع تجهيزات","وصلة كوع"]
[34034,"متنوع تجهيزات","افيز شمبر 3/4"]
[34035,"متنوع تجهيزات","بريزة عادى"]
[34036,"متنوع تجهيزات","بولش"]
[34037,"متنوع تجهيزات","افيز 3 بوصة"]
[34038,"متنوع تجهيزات","افيز 1.5 بوصة "]
[34039,"متنوع تجهيزات","شريط لحام عريض"]
[34040,"متنوع تجهيزات","شريط لحام عادى"]
[34041,"متنوع تجهيزات","باكو سلك لحام 3 ملى تركى"]
[34042,"متنوع تجهيزات","افيز حرف u"]
[34043,"متنوع تجهيزات","ماسورة 1.5 بوصة "]
[34044,"متنوع تجهيزات","ماسورة 1.5 بوصة بولى "]
[34045,"متنوع تجهيزات","ماسورة 3 بوصة p . V . C"]
[34046,"متنوع تجهيزات","وردة سير"]
[34049,"متنوع تجهيزات","مياه خضراء 4 لتر"]
[34047,"متنوع تجهيزات","بشبورى 3/4"]
[34048,"متنوع تجهيزات","وصلة سريعه"]
[34050,"متنوع تجهيزات","سكس بلف سخان"]
[34051,"متنوع تجهيزات","محبس زاوية"]
[34052,"متنوع تجهيزات","بكرة تيفلون"]
[34053,"متنوع تجهيزات","وصلة سخان 5 سم"]
[34054,"متنوع تجهيزات","مفتاح كهرباء خارج الحائط"]
[34056,"متنوع تجهيزات","صابون سائل"]
[34055,"متنوع تجهيزات","فوطة نظافة"]
[34062,"متنوع تجهيزات","مفتاح كهرباء سيمينس"]
[34058,"متنوع تجهيزات","مفتاح كهرباء 17/23 A"]
[34059,"متنوع تجهيزات","مفتاح كهرباء 20/25 A"]
[34060,"متنوع تجهيزات","فيشة كهرباء"]
[34061,"متنوع تجهيزات","علبة كهرباء"]
[34057,"متنوع تجهيزات","انبوبة سيليكون"]
[34174,"متنوع تجهيزات","خرطوم 3/8 RG  طول 175سم"]
[34175,"متنوع تجهيزات","خرطوم 1/2 RG  طول 175سم"]
[34177,"متنوع تجهيزات","لاصق كوله مصري"]
[34176,"متنوع تجهيزات","كونتاكتور شفاين A7220-32"]
[34179,"متنوع تجهيزات","فرخ صنفره "]
[20304,"متنوع تجهيزات","افيز "]
[34178,"متنوع تجهيزات","دوكو  GLC"]
[341871,"متنوع تجهيزات","كابل 3مللي 4 فرده"]
[34090,"متنوع تجهيزات","محبس 3/4 نحاس"]
[34085,"متنوع تجهيزات","انبوبة سيليكون شفاف"]
[null,"متنوع تجهيزات","معطر جو"]
[34171,"متنوع تجهيزات","كونتاك "]
[34170,"متنوع تجهيزات","مفتاح كونتكت "]
[34169,"متنوع تجهيزات","مفتاح سكينه "]
[34172,"متنوع تجهيزات","امبروكسي لحام "]
[34173,"متنوع تجهيزات","بكره سير جنب قطر 16"]
[null,"متنوع تجهيزات","مفتاح كهرباء 3 فاز بتشينو "]
[34142,"متنوع تجهيزات","سيليكون عظم "]
[34148,"متنوع تجهيزات","كاوتش برويطه "]
[34149,"متنوع تجهيزات","بوكليز 8 بوصه APT"]
[34162,"متنوع تجهيزات","كالون T المونيا "]
[34147,"متنوع تجهيزات","تونجر شحن بطاريه CD550"]
[34163,"متنوع تجهيزات","حرف T مقاس 1.50 × 1 لحام "]
[34133,"متنوع تجهيزات","افيز 1 بوصة"]
[34134,"متنوع تجهيزات","سلك لحام نحاس"]
[34135,"متنوع تجهيزات","بودرة لحام نحاس"]
[34132,"متنوع تجهيزات","لمبة قلاوظ 200وات"]
[34131,"متنوع تجهيزات","بلانشيته"]
[34136,"متنوع تجهيزات","افيز 10 َ بوصه "]
[34122,"متنوع تجهيزات","ماسك للمطبخ"]
[34123,"متنوع تجهيزات","مصفاة للمطبخ"]
[34124,"متنوع تجهيزات"," شنط بلاستك للمطبخ"]
[34125,"متنوع تجهيزات","ليفة مواعين"]
[34130,"متنوع تجهيزات","بشبورى غسيل"]
[34126,"متنوع تجهيزات","محبس بلية حديد"]
[34127,"متنوع تجهيزات","T لحام حديد"]
[34128,"متنوع تجهيزات","كوع 1/2 بوصة"]
[34129,"متنوع تجهيزات"," ماسورة مقاس 1 بوصة"]
[34138,"متنوع تجهيزات","حرف T بولي PP  75"]
[34139,"متنوع تجهيزات","محبس 275 لاكور بولي "]
[34137,"متنوع تجهيزات","سيفتي بالف"]
[34144,"متنوع تجهيزات","موزع شحم "]
[34143,"متنوع تجهيزات","كونتاكتور AF26 "]
[34140,"متنوع تجهيزات","سكس بلف بالفلتر (اصلي)"]
[34141,"متنوع تجهيزات","انبوبه حقن بلاستك "]
[34145,"متنوع تجهيزات"," T نحاس 1/8 "]
[34146,"متنوع تجهيزات","جاويت 13 مم"]
[34119,"متنوع تجهيزات","محبس 2 بوصة"]
[34120,"متنوع تجهيزات","كوع 1 بوصة"]
[34121,"متنوع تجهيزات","خرطوم 1/4 ملى"]
[34116,"متنوع تجهيزات","مفصلة 7 سم"]
[34117,"متنوع تجهيزات","قفل 1 بوصة"]
[34118,"متنوع تجهيزات","رزة قفل"]
[34075,"متنوع تجهيزات","فيشة كهرباء دكر"]
[34076,"متنوع تجهيزات","كابل 2 * 2 ملم"]
[34077,"متنوع تجهيزات","محبس سيجفال 3بوصة EPDM"]
[34080,"متنوع تجهيزات","كوع 2 بوصة"]
[34081,"متنوع تجهيزات","نبل خرطوم 2 بوصة"]
[34082,"متنوع تجهيزات","وصلة ماسورة 1.5 بوصة 35سم"]
[34083,"متنوع تجهيزات","وصلة ماسورة 1.5 بوصة 25سم"]
[34084,"متنوع تجهيزات","وصلة ماسورة 2 بوصة * 20سم"]
[34086,"متنوع تجهيزات","افيز 2 بوصة"]
[34087,"متنوع تجهيزات","خرطوم  سلك 2 بوصة"]
[34078,"متنوع تجهيزات","مخفض من 14 الى 11 "]
[34079,"متنوع تجهيزات","مادة غسيل حامض HCL"]
[34071,"متنوع تجهيزات","كندكتورشنيدار A32 كويل 80مم"]
[34072,"متنوع تجهيزات","بواط 20 * 25 سم"]
[34073,"متنوع تجهيزات","مفتاح بوتن اخضر"]
[34074,"متنوع تجهيزات","مفتاح بوتن احمر"]
[34069,"متنوع تجهيزات","مفتاح فلتر - شريط"]
[34070,"متنوع تجهيزات","سبراى جاف"]
[34063,"متنوع تجهيزات","كونتاكتور LCIDOF7"]
[34064,"متنوع تجهيزات","كونتاكتور LCIDO2M71"]
[34065,"متنوع تجهيزات","كونتاكتور LCID25BD"]
[34066,"متنوع تجهيزات","كونتاكتور LDAL22"]
[34067,"متنوع تجهيزات","محبس 1.5 بوصة بسن"]
[null,"مجموعة","متنوع عدد"]
[29021,"متنوع عدد","بلانكو 2 طن"]
[29022,"متنوع عدد","اكمون"]
[29014,"متنوع عدد","منخل NO 3/4 INCH"]
[29015,"متنوع عدد","منخل NO 3.8"]
[29016,"متنوع عدد","منخل NO 1/4 INCH"]
[29017,"متنوع عدد","منخل NO 4"]
[29018,"متنوع عدد","منخل NO 1/2"]
[29019,"متنوع عدد","PAN"]
[29020,"متنوع عدد","مكعبات حديد"]
[29035,"متنوع عدد","مفتاح عجل باليد"]
[29036,"متنوع عدد","كوريك رفع خلاطة"]
[29037,"متنوع عدد","مسدس رش دوكو"]
[29033,"متنوع عدد","زرجينة 3 رجل"]
[29034,"متنوع عدد","مسامير النكيه 24 ملى"]
[29031,"متنوع عدد","درل APT  3/4"]
[29032,"متنوع عدد","مكبس هيدروليك"]
[29030,"متنوع عدد","كرسى سكرو"]
[29040,"متنوع عدد","طقم لقم 3/4  17 لقمة "]
[29041,"متنوع عدد","سنجة 20 كجم"]
[29042,"متنوع عدد","سنجة 10 كجم"]
[29043,"متنوع عدد","سنجة 5 كجم"]
[29044,"متنوع عدد","سنجة 1 كجم"]
[29039,"متنوع عدد","مقاس هواء"]
[29038,"متنوع عدد","تيلة صلب"]
[29052,"متنوع عدد","سلمب حديد"]
[29053,"متنوع عدد","سلمب بلاستيك"]
[29054,"متنوع عدد","عامود دقاق"]
[29055,"متنوع عدد","شاكوش 1 كجم"]
[29056,"متنوع عدد","منخل 12.5 ملى"]
[29057,"متنوع عدد","منخل 10/20"]
[29059,"متنوع عدد","طقم منخل حديد"]
[29058,"متنوع عدد","مفتاح 17 ناحية وناحية"]
[29060,"متنوع عدد","سكينة معجون"]
[29061,"متنوع عدد","كفة ميزان"]
[29045,"متنوع عدد","طقم بيبة 6 قطع"]
[29046,"متنوع عدد","طقم مفكات مقاسات"]
[29047,"متنوع عدد","طقم نجمة 9 قطع"]
[29048,"متنوع عدد","طقم النكيه 9 قطع"]
[29049,"متنوع عدد","فرشة سلك "]
[29050,"متنوع عدد","بنسة كلابة"]
[29051,"متنوع عدد","موتور جلخ 7 بوصة"]
[29062,"متنوع عدد","شنيور صغير"]
[29063,"متنوع عدد","منجلة"]
[29064,"متنوع عدد","هيلتى APT"]
[29113,"متنوع عدد","فرشة 2 بوصة"]
[29112,"متنوع عدد","الة حاسبة"]
[29109,"متنوع عدد","مسمار 30×140 مسدس"]
[29110,"متنوع عدد","مسمار 46 طول 12سم بالوردة"]
[29111,"متنوع عدد","سيخ حديد مربع 12مم×12مم"]
[29158,"متنوع عدد","بنطة 6 ملم"]
[29143,"متنوع عدد","لافية 50سم "]
[29140,"متنوع عدد","عود حديد مربع 12مم×6متر"]
[29139,"متنوع عدد","لقمة لحام 75 ملم بولى"]
[29144,"متنوع عدد","لاكور هواء طويل"]
[29145,"متنوع عدد","شنيور تجليخ كاوتش هواء"]
[29146,"متنوع عدد","حجر جلخ"]
[29147,"متنوع عدد","لافية تسقيط كبير"]
[29148,"متنوع عدد","لافية تسقيط وسط"]
[29149,"متنوع عدد","مرزبة 3.5كجم"]
[29150,"متنوع عدد","يد خشب"]
[29151,"متنوع عدد","صاروخ  5 بوصة صينى"]
[29152,"متنوع عدد","طقم مفتاح ناحية وناحية 8قطع"]
[29153,"متنوع عدد","بنسة 7 بوصة"]
[29154,"متنوع عدد","كماشة 10بوصة"]
[29155,"متنوع عدد","طقم بيض D22"]
[29156,"متنوع عدد","طقم بارات D22"]
[29157,"متنوع عدد","سير 1100×13"]
[29136,"متنوع عدد","قطر بكره"]
[29137,"متنوع عدد","سلاح قطر"]
[29138,"متنوع عدد","بنز تشحيم مقاسات"]
[29141,"متنوع عدد","لافية 60سم عدل"]
[29142,"متنوع عدد","لافية 70سم عدل"]
[29207,"متنوع عدد","ملو اسطوانه "]
[29205,"متنوع عدد","لقمه ربط 14 مم / 1/2"]
[29206,"متنوع عدد","حجر صنفره 5 ً بوصه "]
[29208,"متنوع عدد","طقم اصلاح كولر "]
[20209,"متنوع عدد","اسطوانه حديد "]
[29209,"متنوع عدد","مسمار 17 مم × 8 سم "]
[20208,"متنوع عدد","مسمار صلب 10 ×5 مم "]
[29129,"متنوع عدد","بنز تشحيم"]
[29130,"متنوع عدد","لقمه تركي"]
[29131,"متنوع عدد","فرشه سلك كوبايه"]
[29126,"متنوع عدد","خرطوم لمبة قطعية ايطالى"]
[29127,"متنوع عدد","بك لمبة قطعية 10/16"]
[29128,"متنوع عدد","فرشة دهان 1 بوصة"]
[29132,"متنوع عدد","بكرة سير20*25*89مم"]
[29133,"متنوع عدد","بكرة سير30*35*89مم"]
[29134,"متنوع عدد","بكرة سير 35*30*89مم"]
[29135,"متنوع عدد","بكرة سير 94*100*60مم"]
[29121,"متنوع عدد","مسمار سن صاج تايواني "]
[29122,"متنوع عدد","مسمار كونتر"]
[29123,"متنوع عدد","مسمار 6 مم"]
[29124,"متنوع عدد","مسمار صلب 13 مم"]
[29114,"متنوع عدد","اسطوانة قطع 9 بوصة"]
[29115,"متنوع عدد","خرامة"]
[29118,"متنوع عدد","نظارة لحام"]
[29119,"متنوع عدد","سير مقاسات BVA"]
[29120,"متنوع عدد","جنزير حديد"]
[29116,"متنوع عدد","مسمار 17مم ×16سم"]
[29117,"متنوع عدد","مسمار 17مم ×14سم بالوردة"]
[29090,"متنوع عدد","شبك رمل "]
[29088,"متنوع عدد","صاروخ"]
[29089,"متنوع عدد","مناخل مقاسات مختلفة"]
[29091,"متنوع عدد","عداد حرارة 5/150 A"]
[29092,"متنوع عدد","ليميت سويتش HYM904"]
[29084,"متنوع عدد","قصافة كهرباء"]
[29085,"متنوع عدد","مفك صغير"]
[29086,"متنوع عدد","مفك كبير"]
[29087,"متنوع عدد","مفك تست"]
[29083,"متنوع عدد","ميزان مياه"]
[29078,"متنوع عدد","هيلتى هواء"]
[29081,"متنوع عدد","طقم لقم كامل صاج"]
[29082,"متنوع عدد","طقم لقم بلاستيك"]
[29074,"متنوع عدد","لاكور تزويد"]
[29079,"متنوع عدد","اوكشة"]
[29080,"متنوع عدد","عداد هواء كاوتش"]
[29075,"متنوع عدد","افوميتر من 20 امبير"]
[29076,"متنوع عدد","صفيحة منشار "]
[29077,"متنوع عدد","صفيحة منشار حدادى"]
[29073,"متنوع عدد","اسطوانة تلميع"]
[29071,"متنوع عدد","بنسة ديجيتال"]
[29072,"متنوع عدد","مسدس هواء"]
[29070,"متنوع عدد","مشحمة مدفع يدوي"]
[29069,"متنوع عدد","ايبوكسى حديد 2 * 1"]
[29068,"متنوع عدد","مفتاح 2 ناحية 36 /42"]
[29067,"متنوع عدد","متر حديد 5 متر"]
[29065,"متنوع عدد","بنطة 22"]
[29066,"متنوع عدد","طقم جلب كامل"]
[29000,"متنوع عدد","سلب ( شمبر سياره )"]
[29001,"متنوع عدد","حلة كثافة 0.7"]
[29002,"متنوع عدد","حلة كثافة 0.3"]
[29003,"متنوع عدد","منخل NO 8"]
[29004,"متنوع عدد","منخل NO 10"]
[29005,"متنوع عدد","منخل NO 16"]
[29006,"متنوع عدد","منخل NO 100"]
[29007,"متنوع عدد","منخل NO 200"]
[29008,"متنوع عدد","منخل NO 50"]
[29009,"متنوع عدد","منخل NO 40"]
[29010,"متنوع عدد","منخل NO 30"]
[29011,"متنوع عدد","منخل NO 2 INCH"]
[29012,"متنوع عدد","منخل NO 1.1/2"]
[29013,"متنوع عدد","منخل NO 1 INCH"]
[29210,"متنوع عدد","قلاب نجمه CTP"]
[29216,"متنوع عدد","ماكينه برشام "]
[29211,"متنوع عدد","صاموله 16 ملي "]
[29217,"متنوع عدد","ورده 19 ملم "]
[29218,"متنوع عدد","ورده نحاس 10 مم"]
[29219,"متنوع عدد","ورده افيز 19 مم"]
[29212,"متنوع عدد","بنطه  4 مللي حدادي"]
[29213,"متنوع عدد","بنطه 5 مللي حدادي "]
[29214,"متنوع عدد","بنطه 8 مللي حدادي "]
[29215,"متنوع عدد","مسامير 13 × 4"]
[29221,"متنوع عدد","راس مشحمه 200 لتر A85-G"]
[29223,"متنوع عدد","مسمار 10×45 سن "]
[29222,"متنوع عدد","كونفيرت "]
[29220,"متنوع عدد","لاكور 19 جاز "]
[29224,"متنوع عدد","اتوماتيك ماتور "]
[29225,"متنوع عدد","مسدس جاز "]
[29176,"متنوع عدد","مسامير مقاسات"]
[29093,"متنوع عدد","مبرد حدادى 12 بوصة"]
[29094,"متنوع عدد","مفتاح 17 مم"]
[29095,"متنوع عدد","مفتاح 14"]
[29108,"متنوع عدد","حجر قطعية 9بوصة"]
[29096,"متنوع عدد","مزيتة 16كيلو يدوى"]
[29097,"متنوع عدد","مفتاح فلاتر جلد "]
[29098,"متنوع عدد","قصافة 7بوصة"]
[29099,"متنوع عدد","بنسة سن طويل"]
[29100,"متنوع عدد","بنسة عادة 8 بوصة"]
[29101,"متنوع عدد","مفتاح فرنساوى 12بوصة"]
[29102,"متنوع عدد","مفتاح استلسون 18بوصة"]
[29103,"متنوع عدد","طقم مفتاح بلدى مشرشر 12قطعة"]
[29104,"متنوع عدد","طقم مفتاح مشرشر 12قطعة"]
[29105,"متنوع عدد","طقم مفتاح بلدى 12قطعة "]
[29106,"متنوع عدد","مفتاح فلاتر جنزير"]
[29107,"متنوع عدد","هلتى تكسير 1700وات APT"]
[29159,"متنوع عدد","صامولة متنوع"]
[29169,"متنوع عدد","كوليه 1.5 بوصة"]
[29170,"متنوع عدد","كوليه 1 بوصة"]
[29171,"متنوع عدد","كوليه 2/3 بوصة"]
[29172,"متنوع عدد","كوليه 1/2 بوصة"]
[29173,"متنوع عدد","كوليه 3/4 بوصة"]
[29160,"متنوع عدد","شاكوش 1/2 كجم"]
[29161,"متنوع عدد","مخرج هواء 10*1/8"]
[29162,"متنوع عدد","مخرج هواء 10*1/4"]
[29163,"متنوع عدد","مخرج هواء 10*1/2"]
[29164,"متنوع عدد","T 10"]
[29165,"متنوع عدد","مخرج 12*1/4"]
[29166,"متنوع عدد","طقم اوكر 10*1"]
[29167,"متنوع عدد","بنطة 9 ملى"]
[29198,"متنوع عدد","صاموله 6 مم "]
[29197,"متنوع عدد","صاموله صاروخ "]
[29199,"متنوع عدد","سير محطه  90 × 1B "]
[29200,"متنوع عدد","صاموله + ورده 8 مم "]
[29201,"متنوع عدد","مسمار 17مم + الصاموله مقاس 10 × 5"]
[29192,"متنوع عدد","بنسه كهرباء عاديه "]
[29184,"متنوع عدد","حجر بلح -نحت "]
[29195,"متنوع عدد","مفتاح حراري 9 : 14 "]
[29193,"متنوع عدد","تايمر كوري AT8 N"]
[29194,"متنوع عدد","قاعده 8 رجل  "]
[29196,"متنوع عدد","فرشه دهان 1.50 ً بوصه "]
[29189,"متنوع عدد","نظاره شيفنج "]
[29190,"متنوع عدد","مشحمه 4 لقمه "]
[29191,"متنوع عدد","مشحمه 4 لقمه لد كسن "]
[29185,"متنوع عدد","طقم مفك دق"]
[29186,"متنوع عدد","طقم الانكيه تايواني نجمه "]
[29187,"متنوع عدد","طقم الانكيه الماني عادي "]
[29188,"متنوع عدد","مفك دقاق 12 ُ بوصه "]
[29174,"متنوع عدد","مقص"]
[29175,"متنوع عدد","مغراز"]
[29178,"متنوع عدد","مسامير سن مفك"]
[29177,"متنوع عدد","مسامير 17ملى طول 5 سم"]
[29179,"متنوع عدد","مسطرين"]
[29180,"متنوع عدد","مفك قلاب"]
[29183,"متنوع عدد","زنبه تخريم "]
[29181,"متنوع عدد","مسمار 13 مم طول 5سم +ورده +صاموله "]
[29182,"متنوع عدد","شاكوش 1.50 كجم (مطرقه)"]
[29227,"متنوع عدد","كوليه 2 ً بوصه "]
[20220,"متنوع عدد","مشترك كهرباء "]
[20221,"متنوع عدد","مفتاح كهرباء 2 فاز "]
[29202,"متنوع عدد","عداد جاز  ( بالتر ) ايطالي "]
[29226,"متنوع عدد","مفتاح 10 مم "]
[29204,"متنوع عدد","طبه عاميه "]
[29203,"متنوع عدد","مفتاح صليبه عجل "]
[29228,"متنوع عدد","لاكور مبرد هواء "]
[29229,"متنوع عدد","فرمه حديد خارجي "]
[29230,"متنوع عدد","فرمه حديد داخلي "]
[29231,"متنوع عدد","مفتاح فرمه "]
[45143,"متنوع عدد","بكرة سير 37*40سم"]
[45144,"متنوع عدد","مفتاح ثلاثي 125"]
[29233,"متنوع عدد","مسطره "]
[29234,"متنوع عدد","فرشه دهان 2.5 ً "]
[20215,"متنوع عدد","لاكور 3/8 "]
[29232,"متنوع عدد","شاكوش 2كجم"]
[45129,"متنوع عدد","مندله"]
[45130,"متنوع عدد","جهاز CBR"]
[null,"مجموعة","متنوعه اخرى"]
[39003,"متنوعه اخرى","عوامة خزان مياه"]
[39004,"متنوعه اخرى","سير ميزان"]
[39005,"متنوعه اخرى","سير الصاعد"]
[39006,"متنوعه اخرى","مياه بطارية"]
[39007,"متنوعه اخرى","جلبة 90 بوتز ماستر"]
[39008,"متنوعه اخرى","خرطوم هيدروليك"]
[39009,"متنوعه اخرى","خرطوم فليكسبل 6 بوصة"]
[39010,"متنوعه اخرى","خرطوم هواء 10 ملى"]
[39042,"متنوعه اخرى","جلبة حديد بمشتملاتها"]
[39084,"متنوعه اخرى","وصلة هواء 10مم عدله"]
[39085,"متنوعه اخرى","وصله هواء 12مم عدله"]
[39086,"متنوعه اخرى","كوع لفاف 27×12مم"]
[39032,"متنوعه اخرى","جوانتى جلد"]
[39033,"متنوعه اخرى","منظم اكسجين"]
[39039,"متنوعه اخرى","لفة خرطوم رشاش"]
[39040,"متنوعه اخرى","بطارية مياه"]
[39088,"متنوعه اخرى","دبابيس دباسة كبيرة"]
[39089,"متنوعه اخرى","دبابيس دباسة صغيرة"]
[39087,"متنوعه اخرى","طقم مفصلة "]
[39023,"متنوعه اخرى","كاتل "]
[39024,"متنوعه اخرى","حلل مقاسات مختلفة"]
[39025,"متنوعه اخرى","مصافى مقاسات مختلفة"]
[39026,"متنوعه اخرى","طاسة"]
[39027,"متنوعه اخرى","مقصوصة"]
[39028,"متنوعه اخرى","كابشة"]
[39029,"متنوعه اخرى","صينية الومنيوم"]
[39030,"متنوعه اخرى","فلتر مياه 5 مراحل"]
[39031,"متنوعه اخرى","برويطة"]
[39036,"متنوعه اخرى","حوض بالقاعدة"]
[39037,"متنوعه اخرى","فلتر 7 مراحل"]
[39038,"متنوعه اخرى","حوض"]
[39034,"متنوعه اخرى","هيتر صغير"]
[39035,"متنوعه اخرى","هيتر كبير 2 * 1 "]
[39012,"متنوعه اخرى","سير كمبروسر هواء"]
[39011,"متنوعه اخرى","قفل جنزير"]
[39013,"متنوعه اخرى","وردة عريضة "]
[39020,"متنوعه اخرى","كوعه مياه 20 لتر"]
[39021,"متنوعه اخرى","لفة خرطوم غسيل"]
[39022,"متنوعه اخرى","عود دمج"]
[39017,"متنوعه اخرى","كوباية فاصل"]
[39018,"متنوعه اخرى","فلتر ضغط عالى"]
[39099,"متنوعه اخرى","زاوية حديد 5*5سم"]
[39100,"متنوعه اخرى","كمرة حديد 12 سم"]
[39101,"متنوعه اخرى","سلك شبك صلب"]
[39102,"متنوعه اخرى","قلم دوكو"]
[39103,"متنوعه اخرى","حجر بطارية قلم"]
[39093,"متنوعه اخرى","دباسة "]
[39094,"متنوعه اخرى","دوسيه بلاستيك"]
[39095,"متنوعه اخرى","علبة دبابيس"]
[39096,"متنوعه اخرى","ماوس"]
[39097,"متنوعه اخرى","لوحة مفاتيح"]
[39098,"متنوعه اخرى","قلم جاف ازرق"]
[39090,"متنوعه اخرى","مساحة"]
[39091,"متنوعه اخرى","كوزلك"]
[39092,"متنوعه اخرى","نظارة 230 بوتز ماستر"]
[39104,"متنوعه اخرى","جوانتى قماش"]
[39105,"متنوعه اخرى","اورينج 15×2.5"]
[37106,"متنوعه اخرى","خرطوم ?×148سم R2"]
[37107,"متنوعه اخرى","خرطوم 3/4 R2"]
[39107,"متنوعه اخرى","سيرعرض60سم 3تيلة"]
[29125,"متنوعه اخرى","مفصلة مخرطة"]
[39106,"متنوعه اخرى","وصلة هواء"]
[39108,"متنوعه اخرى","عدل ½ بوصة"]
[39109,"متنوعه اخرى","نبل 3/4* 1/2"]
[39110,"متنوعه اخرى","سلك تربو 2*2"]
[39111,"متنوعه اخرى","سلك 3*1"]
[39112,"متنوعه اخرى","حزام كابلات 40 سم"]
[39113,"متنوعه اخرى","لوتس بون"]
[39114,"متنوعه اخرى","سيلكتور عادة"]
[39115,"متنوعه اخرى","حزام كابلات 10سم"]
[39116,"متنوعه اخرى","حزام كابلات 20سم"]
[39135,"متنوعه اخرى","وصلة t3اتجاة 8مم"]
[39136,"متنوعه اخرى","وصلة عدلة سريعة 1/8مم"]
[39137,"متنوعه اخرى","وصلة عدلة 1/8*8مم"]
[39138,"متنوعه اخرى","مكنسة شوارع"]
[39139,"متنوعه اخرى","بطآنيه"]
[39140,"متنوعه اخرى","ملايه سرير"]
[39141,"متنوعه اخرى","وصله هواء 8مم حرفy"]
[39132,"متنوعه اخرى","وصلة عداة اتجاهين"]
[39133,"متنوعه اخرى","وصله عداة اتجاهين 10مم"]
[39134,"متنوعه اخرى","خرطوم هواء 6.5×8مم"]
[39130,"متنوعه اخرى","لاكيه ازرق"]
[39131,"متنوعه اخرى","خرطوم هواء 8مم"]
[39118,"متنوعه اخرى","لفة سلك فلكسيبل"]
[39119,"متنوعه اخرى","لفة سلك فركسبل10مم"]
[39120,"متنوعه اخرى","لفة سلك فركسبل12مم"]
[39121,"متنوعه اخرى","وصلة هواء10*1/4"]
[39122,"متنوعه اخرى","وصلة هواء10×1/2"]
[39125,"متنوعه اخرى","عدادامبيرkda72"]
[39126,"متنوعه اخرى","سلك شعر1مم"]
[39127,"متنوعه اخرى","خرطوم هيدروليك6م"]
[39128,"متنوعه اخرى","خرطوم هيدروليك2م"]
[39129,"متنوعه اخرى","خرطوم هيدروليك1مم"]
[39124,"متنوعه اخرى","اسبراي فوم"]
[39123,"متنوعه اخرى","جوانتى سيلكون"]
[39117,"متنوعه اخرى","لمبة موفرة 26 وات"]
[39223,"متنوعه اخرى","بوش 1/2 1 × 3/4 "]
[39224,"متنوعه اخرى","نبل حديد 1/2 1  َ بوصه "]
[39225,"متنوعه اخرى","ظرف ورق "]
[39227,"متنوعه اخرى","سخان ديمكس ياباني "]
[39226,"متنوعه اخرى","عمود طلمبه مياه "]
[39215,"متنوعه اخرى","جملكه "]
[39216,"متنوعه اخرى","خرطوم 1/2 R2  مقاس 100 بالنهايات 1/8 ً "]
[39217,"متنوعه اخرى","خرطوم 1/2 R2  مقاس 200بالنهايات 1/8 ً "]
[39218,"متنوعه اخرى","خرطوم 1/2 R2  مقاس 300بالنهايات 1/8 ً "]
[39219,"متنوعه اخرى","خرطوم 1/2 R2  مقاس 400بالنهايات 1/8 ً "]
[39220,"متنوعه اخرى","طمبوره قطر 10 سم عدد 2 سير 17 مم "]
[39221,"متنوعه اخرى","طمبوره قطر 30سم 2سير شبيه 8 مم "]
[39222,"متنوعه اخرى","عمود40مم قطر 25سم طول 25سم + مشبيه "]
[39213,"متنوعه اخرى","مزيل صداء MD"]
[39214,"متنوعه اخرى","كسب كولمان شريط عريض "]
[39143,"متنوعه اخرى","سير 750×13عادة"]
[39145,"متنوعه اخرى","مسمار بالفيشر 6مم"]
[39144,"متنوعه اخرى","فيشة دكر + نتاية"]
[39146,"متنوعه اخرى","toner xerox 5020"]
[39147,"متنوعه اخرى","تنر لودر"]
[39150,"متنوعه اخرى","لحام سير عرض 100 سم"]
[39148,"متنوعه اخرى","كوس نحاس 185 مم"]
[39149,"متنوعه اخرى","كوس نحاس 95 مم"]
[39151,"متنوعه اخرى","نبل 3/4 *1/2 لماسورة c2510"]
[39152,"متنوعه اخرى","موزع هواء 1/2 بوصة"]
[39153,"متنوعه اخرى","محبس بول 1/2 د.خ نيكل"]
[39154,"متنوعه اخرى","بوش 1/2 * 1/4"]
[39155,"متنوعه اخرى","مخرج سريع بالجوان"]
[39156,"متنوعه اخرى","خرطوم كاوتش 8*17"]
[39157,"متنوعه اخرى","LCID95"]
[39158,"متنوعه اخرى","NSX100B 3P 100A"]
[39159,"متنوعه اخرى","XMLB010A2S11"]
[39160,"متنوعه اخرى","كابل نحاس 3*185 + 95 مم"]
[39161,"متنوعه اخرى","كابل نحاس 4*25مم"]
[39162,"متنوعه اخرى","لحام سير عرض 60 سم"]
[39163,"متنوعه اخرى","لحام سير عرض 80سم "]
[39164,"متنوعه اخرى","غطاء للسيارة المرسيدس"]
[39245,"متنوعه اخرى","زاويه 5 سم × 5 سم "]
[39240,"متنوعه اخرى","خرطوم 16.50 × 60 عدل × عدل  R2"]
[39241,"متنوعه اخرى","خرطوم 16.50 × 55عدل × عدل  R2"]
[39242,"متنوعه اخرى","خرطوم 16.50 × 50 سم عدل × عدل  R2"]
[39243,"متنوعه اخرى","خرطوم 3/4× 68 عدل × عدل  R2"]
[39244,"متنوعه اخرى","عدل في عدل في زاويه 3/4 "]
[39235,"متنوعه اخرى","كوهن ( اسطبه)"]
[39236,"متنوعه اخرى","نهايات 3/8 "]
[39237,"متنوعه اخرى","مساحه ميكسر 3 متر "]
[39238,"متنوعه اخرى","كفه ميكسر 3 م"]
[39239,"متنوعه اخرى","مشمع بلاستك "]
[39229,"متنوعه اخرى","زاويه حديد 4 × 4 "]
[39230,"متنوعه اخرى","علبه 2×4 سماكه 3 مللي "]
[39231,"متنوعه اخرى","خوصه حديد 3م × 3سم ×طول 6م "]
[39232,"متنوعه اخرى","زاويه حديد وسط "]
[39233,"متنوعه اخرى","مسمار برشام  مقاسات "]
[39228,"متنوعه اخرى","قلم ماركر "]
[39234,"متنوعه اخرى","منظم هواء"]
[39481,"متنوعه اخرى","بكرة سير  30سم"]
[39482,"متنوعه اخرى","مسامير19 طول 8 سم"]
[39483,"متنوعه اخرى","وصله بلاستك 6م"]
[39484,"متنوعه اخرى","ورده نحاس 17*19"]
[39485,"متنوعه اخرى","دكر 3/4"]
[39486,"متنوعه اخرى","افيز 3/4"]
[39001,"متنوعه اخرى","صندوق عدة فارغ"]
[39002,"متنوعه اخرى","برميل فارغ"]
[39000,"متنوعه اخرى","لفة سلك مواعين"]
[39044,"متنوعه اخرى","قاعدة حمام"]
[39045,"متنوعه اخرى","بانيو ادمى"]
[39043,"متنوعه اخرى","مغسلة سيارات"]
[39046,"متنوعه اخرى","تيرا كهرباء"]
[39047,"متنوعه اخرى","كمامة ورق"]
[39048,"متنوعه اخرى","سلك المونيوم"]
[39049,"متنوعه اخرى","كمبون"]
[39050,"متنوعه اخرى","خرطوم لندة 4 م"]
[39051,"متنوعه اخرى","خرطوم لندة 6 م"]
[39052,"متنوعه اخرى","افيز استانلس + 4 كوليه"]
[39053,"متنوعه اخرى","بكر سير 135"]
[39056,"متنوعه اخرى","طقم حشو موتور مياه 16 مم"]
[39057,"متنوعه اخرى","مروحة 20 مم بلاستيك"]
[39054,"متنوعه اخرى","كوليه طلمبه مياه خلاطه"]
[39055,"متنوعه اخرى","صمام 5/2 * 3/4"]
[39058,"متنوعه اخرى","لمبة موفرة 15 وات محلي "]
[39059,"متنوعه اخرى","كرتونة ورق A4"]
[39060,"متنوعه اخرى","زجاجة مياه نار"]
[39061,"متنوعه اخرى","ملمع تابلوه"]
[39062,"متنوعه اخرى","شوال فحم كوك"]
[39256,"متنوعه اخرى","علبه حديد 4 سم × 4 سم ×1.25 مم × 6 متر "]
[39471,"متنوعه اخرى","مسمار بالصامولة شفرة بلدوزر"]
[39259,"متنوعه اخرى","سير كاوتش c ×105 ×22×2726 Ld "]
[37182,"متنوعه اخرى","متر خرطوم مقياس"]
[39472,"متنوعه اخرى","مسمار 19 صلب"]
[39473,"متنوعه اخرى","مسمار الين"]
[39258,"متنوعه اخرى","سير كاوتش 6 مم 2تيله عرض 10 سم "]
[39019,"متنوعه اخرى","مسمار حديد  بالصاموله مقاسات "]
[39474,"متنوعه اخرى","خرطوم 1 بوصه× 1 م عدل × عدل  R2"]
[39475,"متنوعه اخرى","تي حديد T  مقاس 1 ً "]
[39476,"متنوعه اخرى","سير كاوتش XKP 8 - 2525"]
[39477,"متنوعه اخرى","مسمار17 طول 5سم"]
[39478,"متنوعه اخرى","مسمار الين 16*30"]
[29479,"متنوعه اخرى","مسمار الين 16*10"]
[39480,"متنوعه اخرى","مسمار الين 12*20"]
[39251,"متنوعه اخرى","سير بلدوزر 2675 D2 "]
[39252,"متنوعه اخرى","سير بلدوزر 2725"]
[39253,"متنوعه اخرى","نبل 24 × 1/2 بوصه محلي "]
[39254,"متنوعه اخرى","خرطوم 1/2بوصه 50 سم عدل × عدل  R2"]
[39255,"متنوعه اخرى","سلك كهرباء 2 مم "]
[39212,"متنوعه اخرى","خرطوم 1.50 بوصه 88 بار "]
[39246,"متنوعه اخرى","سلك 4 ×4 جنرال "]
[39247,"متنوعه اخرى","لمبه ليد "]
[39248,"متنوعه اخرى","نبل حديد 3 ً بوصه "]
[39249,"متنوعه اخرى","بوش حديد 1/2× 1 بوصه "]
[39250,"متنوعه اخرى","نبل حديد  1/2 × 1 بوصه "]
[39198,"متنوعه اخرى","سلك 6 مم سويدي"]
[39199,"متنوعه اخرى","نبل 10/12"]
[39200,"متنوعه اخرى","جرانجريتي"]
[39174,"متنوعه اخرى","خرطوم 1/4 R2"]
[39188,"متنوعه اخرى","شمبر برويطة"]
[39191,"متنوعه اخرى","شبكة 160*500*60 م بدون زوايا"]
[39192,"متنوعه اخرى","خوصة حديد 50*5"]
[39194,"متنوعه اخرى","دواية قلاوظ"]
[39193,"متنوعه اخرى","سلك 2 *1 "]
[39195,"متنوعه اخرى","علبة كلبسات 2بوصة"]
[39196,"متنوعه اخرى","مفتاح كلبسات"]
[39197,"متنوعه اخرى","لحامات مقاسات مختلفة"]
[39189,"متنوعه اخرى","حنفيه 1/2 بوصة"]
[39190,"متنوعه اخرى","افيز 1/4 بوصة"]
[39184,"متنوعه اخرى","ادوات مكتبية للأدارة"]
[39187,"متنوعه اخرى","محبس حديد 1.25 ايطالى"]
[39179,"متنوعه اخرى","قنطرة مطبخ"]
[39186,"متنوعه اخرى","لاكور كبس خرطوم 1/4 بوصة"]
[39185,"متنوعه اخرى","سلك "]
[39205,"متنوعه اخرى","بكره قصدير 2 مم"]
[39206,"متنوعه اخرى","جلبه مقص علوي "]
[39209,"متنوعه اخرى","كابل بور "]
[39210,"متنوعه اخرى","كشكول ورق"]
[39207,"متنوعه اخرى","تي t حديد 1.50 ً بوصه "]
[39208,"متنوعه اخرى","نبل حديد 1/2 ً بوصه "]
[39201,"متنوعه اخرى","قلب 1/2 ً بوصه "]
[39202,"متنوعه اخرى","بروه محاره"]
[39203,"متنوعه اخرى","خرطوم غاز 1/2 بوصه "]
[39204,"متنوعه اخرى","سفنجه تلميع "]
[39211,"متنوعه اخرى","مشترك 3 طرف موزع شحم "]
[39176,"متنوعه اخرى","خرطوم 1.25 بوصة"]
[37180,"متنوعه اخرى","سير غساله"]
[37181,"متنوعه اخرى","خرطوم سلك 1/4 بوصة"]
[39175,"متنوعه اخرى","نبل حديد 1.5 بوصة"]
[39178,"متنوعه اخرى","مشترك مسلوب 1 بوصة × 1/2"]
[39177,"متنوعه اخرى","افيز 1.25 بوصة"]
[39180,"متنوعه اخرى","سيل بستم 64*2 ايطالى"]
[39181,"متنوعه اخرى","سيل بستم 60*70*10 ايطالى"]
[39182,"متنوعه اخرى","سيل بستم 60*68 ايطالى"]
[39183,"متنوعه اخرى","جلبة 1/4 حديد"]
[39165,"متنوعه اخرى","وصلة فلتر هواء 1/4 "]
[39166,"متنوعه اخرى","كتان"]
[39167,"متنوعه اخرى","وصلة هواء 12*1/4"]
[39168,"متنوعه اخرى","وصلة هواء 12*1/2"]
[39169,"متنوعه اخرى","شنبر 18/300"]
[39170,"متنوعه اخرى","سلك نت"]
[39171,"متنوعه اخرى","بوش حديد مجلفن 1.5 بوصة"]
[39172,"متنوعه اخرى","طبة حديد مجلفن 1.5 بوصة"]
[39173,"متنوعه اخرى","طبة حديد مجلفن 2 بوصة"]
[37174,"متنوعه اخرى","طبة حديد مجلفن 1بوصة"]
[37175,"متنوعه اخرى","سن قلاووظ"]
[37176,"متنوعه اخرى","نبل حديد مجلفن 1 بوصة"]
[37177,"متنوعه اخرى","لاكور نحاس 3/4"]
[37178,"متنوعه اخرى","مشترك 1.5 بوصة"]
[37179,"متنوعه اخرى","نبل حديد 3/4"]
[39082,"متنوعه اخرى","وصلة هواء 6مم عدله"]
[39083,"متنوعه اخرى","وصلة هواء 8مم عدله"]
[39076,"متنوعه اخرى","قفل 2.5 بوصة"]
[39077,"متنوعه اخرى","قفل 2 بوصة"]
[39078,"متنوعه اخرى","لوح صاج 3مم"]
[39079,"متنوعه اخرى","لوح صاج 4مم بقلاوة "]
[39080,"متنوعه اخرى","علبة حديد 4×7×6متر سمك 2مم"]
[39081,"متنوعه اخرى","مفصلة حديد 14سم"]
[39073,"متنوعه اخرى","سلك رباط"]
[39072,"متنوعه اخرى","روزمة ورق تصوير"]
[39074,"متنوعه اخرى","وصلة 10/8 مخفض"]
[39075,"متنوعه اخرى","وصلة 10 مم حرف t"]
[39071,"متنوعه اخرى","قفل باب"]
[39070,"متنوعه اخرى","شمعة سخان بالترموستات ايطالى"]
[39066,"متنوعه اخرى","طبة نحاس 7.5 بوصة للطلمبة"]
[39067,"متنوعه اخرى","طقم حشو حوض مياه"]
[39068,"متنوعه اخرى","لحام حديد 2 * 1"]
[39069,"متنوعه اخرى","حافظة بلاستيك"]
[39063,"متنوعه اخرى","بوذ تشحيم عدل"]
[39064,"متنوعه اخرى","بوذ تشحيم زاوية"]
[39065,"متنوعه اخرى","بك تشحيم"]
[null,"مجموعة","مواد خام"]
[null,"مواد خام","اسمنت"]
[4,"مواد خام","اسمنت مقاوم SRC - الشروق"]
[3,"مواد خام","اسمنت الجيش- مودرن"]
[1,"مواد خام","اسمنت عادى الشروق"]
[2,"مواد خام","اسمنت الجيش الشروق"]
[5,"مواد خام","اسمنت عادي مارش ميكس "]
[null,"مواد خام","رمل"]
[6001,"مواد خام","رمل خرسانة / اسفلت"]
[6000,"مواد خام","رمل"]
[null,"مواد خام","سن"]
[3018,"مواد خام","سن 1 كسارة النوبى"]
[3021,"مواد خام","سن 1 كسارة ياسما"]
[3022,"مواد خام","سن 2 كسارة ياسما"]
[3023,"مواد خام","سن 1 كسارة الجزار"]
[3024,"مواد خام","سن 1 كسارة المدثر"]
[3025,"مواد خام","سن 2 كسارة المدثر"]
[3026,"مواد خام","سن 1 كسارة الدالى"]
[3027,"مواد خام","سن 2 كسارة الدالى"]
[3028,"مواد خام","سن 1 كسارة النمر"]
[3029,"مواد خام","سن 2 كسارة النمر"]
[3016,"مواد خام","سن 2 كسارة عتاقة/خليل سعيد"]
[3017,"مواد خام","سن 2 كسارة الجزار "]
[3014,"مواد خام","سن 1 اول الفترة"]
[3015,"مواد خام","سن 2 اول الفترة"]
[3012,"مواد خام","سن 2 كسارة النوبى"]
[3013,"مواد خام","سن 1 كسارة العجلان"]
[3010,"مواد خام","سن 1 كسارة برفكت"]
[3011,"مواد خام","سن 2 كسارة برفكت"]
[3030,"مواد خام","سن 1 كسارة الشناوى"]
[3031,"مواد خام","سن 2 كسارة الشناوى"]
[3051,"مواد خام","سن 1 كساره نور الاسلام "]
[3049,"مواد خام","سن 2 كساره هنداوي "]
[3050,"مواد خام","سن 2 كساره الحرمين "]
[3001,"مواد خام","سن 2 كسارة الجلالة"]
[3002,"مواد خام","سن 1 كسارة الجلالة"]
[3003,"مواد خام","سن 2 كسارة الفهد"]
[3004,"مواد خام","سن 1 كسارة الفهد"]
[3005,"مواد خام","سن 1 كسارة  العرمبى"]
[3006,"مواد خام","سن 2 كسارة العرمبى"]
[3007,"مواد خام","سن 6 كسارة المتحدة"]
[3000,"مواد خام","سن 2 كسارة زهور الاسلام "]
[3052,"مواد خام","سن 1 كساره السلام "]
[3053,"مواد خام","سن2 كساره السلام "]
[3054,"مواد خام","سن 1 كساره دولميت "]
[3055,"مواد خام","سن 2كساره دولميت "]
[3056,"مواد خام","سن 2 كساره رنور الاسلام "]
[3058,"مواد خام","سن 1 خير الدين"]
[3059,"مواد خام","سن2 خير الدين"]
[3057,"مواد خام","سن2 كسارة المدينة المنورة"]
[3033,"مواد خام","سن1 كسارة الاخلاص"]
[3032,"مواد خام","سن 2 كسارة الامام"]
[3034,"مواد خام","سن 1 كسارة المدينة المنورة"]
[3008,"مواد خام","سن 1 كسارة زهور الاسلام "]
[3048,"مواد خام","سن 2 كساره الاخلاص "]
[3044,"مواد خام","سن 1 كساره الفردي"]
[3045,"مواد خام","سن 2 كساره الفردي "]
[3046,"مواد خام","سن 1 كساره العالميه "]
[3047,"مواد خام","سن 2 كساره العالميه "]
[3040,"مواد خام","سن 2 كساره الشركه العربيه لمواد البناء - بن لادن "]
[3039,"مواد خام","سن 2 كسارة الرحاب "]
[3038,"مواد خام","سن 1 كساره البشير"]
[3043,"مواد خام","سن 2 كساره الحنتوشي "]
[3041,"مواد خام","سن 2 كساره البشير"]
[3042,"مواد خام","سن 1 كساره الحنتوشي "]
[3035,"مواد خام","سن1 كسارة الاماراتية"]
[3036,"مواد خام","سن 2 كسارة الاماراتية"]
[null,"مجموعة","مواد كيماوية اضافات"]
[9016,"مواد كيماوية اضافات"," SP 15 - G"]
[9015,"مواد كيماوية اضافات","sikament 163 M - F"]
[9014,"مواد كيماوية اضافات","sikament 50 N - اجهاد مبكر"]
[9004,"مواد كيماوية اضافات","مادة مانع نفاذية"]
[9005,"مواد كيماوية اضافات","EGYSPA 750 - F"]
[9003,"مواد كيماوية اضافات"," EgyspA 840 - G "]
[9002,"مواد كيماوية اضافات","BASF 3375 - G"]
[9006,"مواد كيماوية اضافات","BASF 3020- G"]
[9001,"مواد كيماوية اضافات","G40 SIKA"]
[9007,"مواد كيماوية اضافات","BASF 3030 - G"]
[9017,"مواد كيماوية اضافات","SP 30 - G"]
[9009,"مواد كيماوية اضافات","اجهاد مبكر - masterpolyheed 3600"]
[9010,"مواد كيماوية اضافات","BASF 874 - F"]
[9011,"مواد كيماوية اضافات","BASF 3060"]
[9012,"مواد كيماوية اضافات","BASF 3045"]
[9013,"مواد كيماوية اضافات","SIKAMENT 340 G"]
[9021,"مواد كيماوية اضافات","ماده اضافه ACTIVEL "]
[9023,"مواد كيماوية اضافات","ماده اضافه باسيف 846"]
[9024,"مواد كيماوية اضافات","ماده اضافه سيليكا فوم "]
[9022,"مواد كيماوية اضافات","اراكو sp10 "]
[9020,"مواد كيماوية اضافات","BASF 3040 "]
[9026,"مواد كيماوية اضافات","BASF  890 "]
[9027,"مواد كيماوية اضافات","BASF  3838"]
[9025,"مواد كيماوية اضافات","ماده اضافه PROMIX G50"]
[9018,"مواد كيماوية اضافات","BASF 880"]
[9019,"مواد كيماوية اضافات","BASF (WP707M)0 "]
[null,"مجموعة","مياه"]
[7000,"صنف","مياه"]
[null,"مجموعة","البتومين والمحاليل الاسفلتيه"]
[null,"صنف","M C 30 اسبك - عامريه"]
[null,"صنف","R C 3000 اسبك - عامرية"]
[null,"صنف","M C 30 اسبك "]
[null,"صنف","R C 3000 اسبك "]
[12000,"صنف","بيتومين 70/60 السويس - الاسكندريه - العامرية"]
[null,"مجموعة","خرسانة جاهزة"]
[350,"خرسانة جاهزة","خرسانة جاهزة اجهاد 350"]
[250,"خرسانة جاهزة","خرسانة جاهزة اجهاد 250"]
[100,"خرسانة جاهزة","خرسانة جاهزة اجهاد 100"]
[200,"خرسانة جاهزة","خرسانة جاهزة اجهاد 200"]
[150,"خرسانة جاهزة","خرسانة جاهزة اجهاد 150"]
[300,"خرسانة جاهزة","خرسانة جاهزة اجهاد 300"]
[180,"خرسانة جاهزة","خرسانة جاهزة اجهاد 180"]
[280,"خرسانة جاهزة","خرسانة جاهزة اجهاد 280"]
[600,"خرسانة جاهزة","اعمال توريد مواسير 6 بوصة"]
[400,"خرسانة جاهزة","اعمال توريد مواسير 4 بوصة"]
[10,"صنف","اعمال توريد س6 من المحاجر المعتمده"]
[11,"صنف"," سولار- قطاع اعمال"]
[null,"صنف","اعمال نقل وتوريد اتربه طبقا لتوصيف البند"]
[3,"مجموعة","اصول ثابتة"]
[45053,"اصول ثابتة","مكتب موبيكا"]
[45054,"اصول ثابتة","كرسى متحرك"]
[45055,"اصول ثابتة","كرسى بلاستيك"]
[45056,"اصول ثابتة","كيسة كمبيوتر"]
[45057,"اصول ثابتة","طابعة HP 3015"]
[45058,"اصول ثابتة","طابعة سامسونج M 2020W"]
[45059,"اصول ثابتة","طابعة كانون بالسكانر"]
[45068,"اصول ثابتة","تنك مياه 5000 لتر"]
[45069,"اصول ثابتة","تنك مياه 3000 لتر"]
[45070,"اصول ثابتة","سخان غاز 10 لتر"]
[45071,"اصول ثابتة","مولد صغير بالتنك NO9"]
[45072,"اصول ثابتة","كشاف هالوجين 1000"]
[45066,"اصول ثابتة","كونتينر"]
[45067,"اصول ثابتة","موتور "]
[45060,"اصول ثابتة","كرفان"]
[45061,"اصول ثابتة","كولدير"]
[45062,"اصول ثابتة","مرتبة اسفنج"]
[45063,"اصول ثابتة","غرفة بالباب"]
[45064,"اصول ثابتة","باب خشب"]
[45065,"اصول ثابتة","سلم حديد"]
[45089,"اصول ثابتة","شاشة hp"]
[45090,"اصول ثابتة","حبارة HP-53A"]
[45098,"اصول ثابتة","مبرد كا 340 (مبرد زيت كوثر)"]
[45099,"اصول ثابتة","بور صبلاي 620 "]
[45100,"اصول ثابتة","شفشق خلاط طعام "]
[45092,"اصول ثابتة","مولد 217 8 كيلو  وات"]
[45091,"اصول ثابتة","كشاف ليد 100وات"]
[45001,"اصول ثابتة","مكتب خشب"]
[45002,"اصول ثابتة","مكتب حديد"]
[45003,"اصول ثابتة","كرسى ثابت"]
[45004,"اصول ثابتة","كمبيوتر كامل"]
[45005,"اصول ثابتة","طابعة HP 2018"]
[45006,"اصول ثابتة","تكييف"]
[45007,"اصول ثابتة","تكييف 1.5 حصان بارد"]
[45008,"اصول ثابتة","ريموت تكييف"]
[45009,"اصول ثابتة","دولاب"]
[45010,"اصول ثابتة","راوتر"]
[45011,"اصول ثابتة","طرابيزة"]
[45012,"اصول ثابتة","مروحه استاند"]
[45013,"اصول ثابتة","مروحه"]
[45014,"اصول ثابتة","خزينة"]
[45015,"اصول ثابتة","سكانر"]
[45016,"اصول ثابتة","غلاية شاى كبيرة"]
[45017,"اصول ثابتة","بوتجاز انبوبة"]
[45018,"اصول ثابتة","كرفان مسجد"]
[45019,"اصول ثابتة","كرفان نوم"]
[45020,"اصول ثابتة","كرفان امن وحراسة"]
[45021,"اصول ثابتة","كرفان حمام"]
[45022,"اصول ثابتة","انبوبة اكسجين بالمنظم"]
[45023,"اصول ثابتة","انبوبة غاز بقاعدة"]
[45024,"اصول ثابتة","انبوبة غاز"]
[45025,"اصول ثابتة","ديب فريزر"]
[45026,"اصول ثابتة","سرير دورين"]
[45027,"اصول ثابتة","فرن"]
[45028,"اصول ثابتة","خلاط"]
[45029,"اصول ثابتة","طفاية حريق 6 كجم"]
[45030,"اصول ثابتة","ثلاجة 1 باب"]
[45031,"اصول ثابتة","غسالة عادى"]
[45032,"اصول ثابتة","تلفزيون"]
[45033,"اصول ثابتة","ريسيفر"]
[45034,"اصول ثابتة","طبق دش"]
[45035,"اصول ثابتة","سخان كهرباء اوليمبيك"]
[45036,"اصول ثابتة","شفاط هواء 30 * 20"]
[45037,"اصول ثابتة","مولد كهرباء"]
[45038,"اصول ثابتة","ماكينة لحام كهرباء"]
[45039,"اصول ثابتة","تنك مياه حديد"]
[45040,"اصول ثابتة","ماكينة غسيل مياه"]
[45041,"اصول ثابتة","موتور مياه لتنكات المياه"]
[45042,"اصول ثابتة","مهزة "]
[45043,"اصول ثابتة","تنك سولار"]
[45044,"اصول ثابتة","مسدس 4 عداد + موتور سولار"]
[45046,"اصول ثابتة","خلاطة نحلة"]
[45047,"اصول ثابتة","هيتر"]
[45048,"اصول ثابتة","ماكينة تكسير"]
[45049,"اصول ثابتة","ميزان حساس"]
[45050,"اصول ثابتة","استبليزر ماكينة"]
[45051,"اصول ثابتة","فرن كهرباء للعينات"]
[45052,"اصول ثابتة","كوريك رفع 2 طن"]
[45045,"اصول ثابتة","هوبر"]
[45084,"اصول ثابتة","مولد Airman"]
[45085,"اصول ثابتة","مولد  G N8"]
[45086,"اصول ثابتة","موتور جاز"]
[45087,"اصول ثابتة","تنك جاز 5000 لتر"]
[45088,"اصول ثابتة","تنك جاز 1000 لتر"]
[45081,"اصول ثابتة","جهاز استخلاص"]
[45083,"اصول ثابتة","مولد كاتربيلر كبير"]
[45082,"اصول ثابتة","مذياع"]
[45076,"اصول ثابتة","سرير دور واحد"]
[45077,"اصول ثابتة","دفاية كهرباء 3 شمعة"]
[45078,"اصول ثابتة","تكييف 2.1/2 حصان"]
[45079,"اصول ثابتة","شعلة 2 عين"]
[45080,"اصول ثابتة","تنكات مياه مقاسات مختلفة"]
[45075,"اصول ثابتة","دكاك"]
[45074,"اصول ثابتة","طفاية سيارة"]
[45073,"اصول ثابتة","كمبروسر هواء"]
[45103,"اصول ثابتة","بكليز قياس "]
[45101,"اصول ثابتة","ميزان قامه"]
[45102,"اصول ثابتة","حامل ميزان قامه "]
[45114,"اصول ثابتة","ترمو متر ديجيتال "]
[45115,"اصول ثابتة","هزاز مناخل "]
[45116,"اصول ثابتة","فرن تجفيف "]
[45117,"اصول ثابتة","ورق ترشيح"]
[45118,"اصول ثابتة","دقاق مرشال "]
[45119,"اصول ثابتة","قالب مرشال "]
[45120,"اصول ثابتة","حمام مائي "]
[45121,"اصول ثابتة","جهاز كسر مارشال "]
[45122,"اصول ثابتة","جهاز استخراج قوالب مارشال "]
[45123,"اصول ثابتة","جهاز GMM"]
[45124,"اصول ثابتة","جهاز كور كاتر "]
[45125,"اصول ثابتة","منشار اسفلت "]
[45112,"اصول ثابتة","قامه"]
[45113,"اصول ثابتة","برزمه  بالعدسه"]
[45107,"اصول ثابتة","ماكينه غسيل ايطالي "]
[45104,"اصول ثابتة","كي بورد ( لوحه مفاتيح كمبيوتر)"]
[45105,"اصول ثابتة","موس فاره للكميوتر "]
[45106,"اصول ثابتة","كابل بور (للشاشه والبور ) "]
[45139,"اصول ثابتة","طقم مناخل"]
[45140,"اصول ثابتة","منخل رقم200"]
[45141,"اصول ثابتة","مندله"]
[45142,"اصول ثابتة","جهاز CBR"]
[45126,"اصول ثابتة","كازا جراند "]
[45127,"اصول ثابتة","جهاز قياس الوزن النوعي "]
[45128,"اصول ثابتة","جهاز التفلطح "]
[45131,"اصول ثابتة","قالب CBR"]
[45132,"اصول ثابتة","جهاز لوس انجلوس"]
[45133,"اصول ثابتة","مخبار 500 مل "]
[45134,"اصول ثابتة","بوكليز 30 سم "]
[45135,"اصول ثابتة","اسطوانه كور"]
[45136,"اصول ثابتة","مجموعه حلل كثافه "]
[45137,"اصول ثابتة","قضيب دمك"]
[45138,"اصول ثابتة","اسطوانه منشار "]
[45145,"اصول ثابتة","فلاشة نت موبينيل (بالخط)"]
[45093,"اصول ثابتة","حبارة HP12A"]
[45094,"اصول ثابتة","طابعة كانون 6030"]
[45095,"اصول ثابتة","حبارة canon725"]
[45096,"اصول ثابتة","مروحه تبريد موتور"]
[45097,"اصول ثابتة","ريلاي استيراد"]

{"sheet":"Master Sheet","index":2,"n_rows":38,"n_cols":10,"rows_kept":38,"cut":false,"hidden":false,"merged":[[0,9,1,9],[0,0,1,0],[0,1,1,1],[0,2,1,2],[0,3,0,5],[0,6,0,8]]}
["م","رقم المستند","التاريخ","الــــــــــــــــــوارد",null,null,"المنصــــــــــــــــــرف",null,null,"الكود"]
[null,null,null,"مشتريات","الانتاج","تحويل من \nمستودع اخر ","التشغيل","الفروع","مرتجعات "]
[{"$f":"IF(B3=\"\",\"\",SUBTOTAL(3,$B$3:B3))","v":""}]
[{"$f":"IF(B4=\"\",\"\",SUBTOTAL(3,$B$3:B4))","v":""}]
[{"$f":"IF(B5=\"\",\"\",SUBTOTAL(3,$B$3:B5))","v":""}]
[{"$f":"IF(B6=\"\",\"\",SUBTOTAL(3,$B$3:B6))","v":""}]
[{"$f":"IF(B7=\"\",\"\",SUBTOTAL(3,$B$3:B7))","v":""}]
[{"$f":"IF(B8=\"\",\"\",SUBTOTAL(3,$B$3:B8))","v":""}]
[{"$f":"IF(B9=\"\",\"\",SUBTOTAL(3,$B$3:B9))","v":""}]
[{"$f":"IF(B10=\"\",\"\",SUBTOTAL(3,$B$3:B10))","v":""}]
[{"$f":"IF(B11=\"\",\"\",SUBTOTAL(3,$B$3:B11))","v":""}]
[{"$f":"IF(B12=\"\",\"\",SUBTOTAL(3,$B$3:B12))","v":""}]
[{"$f":"IF(B13=\"\",\"\",SUBTOTAL(3,$B$3:B13))","v":""}]
[{"$f":"IF(B14=\"\",\"\",SUBTOTAL(3,$B$3:B14))","v":""}]
[{"$f":"IF(B15=\"\",\"\",SUBTOTAL(3,$B$3:B15))","v":""}]
[{"$f":"IF(B16=\"\",\"\",SUBTOTAL(3,$B$3:B16))","v":""}]
[{"$f":"IF(B17=\"\",\"\",SUBTOTAL(3,$B$3:B17))","v":""}]
[{"$f":"IF(B18=\"\",\"\",SUBTOTAL(3,$B$3:B18))","v":""}]
[{"$f":"IF(B19=\"\",\"\",SUBTOTAL(3,$B$3:B19))","v":""}]
[{"$f":"IF(B20=\"\",\"\",SUBTOTAL(3,$B$3:B20))","v":""}]
[{"$f":"IF(B21=\"\",\"\",SUBTOTAL(3,$B$3:B21))","v":""}]
[{"$f":"IF(B22=\"\",\"\",SUBTOTAL(3,$B$3:B22))","v":""}]
[{"$f":"IF(B23=\"\",\"\",SUBTOTAL(3,$B$3:B23))","v":""}]
[{"$f":"IF(B24=\"\",\"\",SUBTOTAL(3,$B$3:B24))","v":""}]
[{"$f":"IF(B25=\"\",\"\",SUBTOTAL(3,$B$3:B25))","v":""}]
[{"$f":"IF(B26=\"\",\"\",SUBTOTAL(3,$B$3:B26))","v":""}]
[{"$f":"IF(B27=\"\",\"\",SUBTOTAL(3,$B$3:B27))","v":""}]
[{"$f":"IF(B28=\"\",\"\",SUBTOTAL(3,$B$3:B28))","v":""}]
[{"$f":"IF(B29=\"\",\"\",SUBTOTAL(3,$B$3:B29))","v":""}]
[{"$f":"IF(B30=\"\",\"\",SUBTOTAL(3,$B$3:B30))","v":""}]
[{"$f":"IF(B31=\"\",\"\",SUBTOTAL(3,$B$3:B31))","v":""}]
[{"$f":"IF(B32=\"\",\"\",SUBTOTAL(3,$B$3:B32))","v":""}]
[{"$f":"IF(B33=\"\",\"\",SUBTOTAL(3,$B$3:B33))","v":""}]
[{"$f":"IF(B34=\"\",\"\",SUBTOTAL(3,$B$3:B34))","v":""}]
[{"$f":"IF(B35=\"\",\"\",SUBTOTAL(3,$B$3:B35))","v":""}]
[{"$f":"IF(B36=\"\",\"\",SUBTOTAL(3,$B$3:B36))","v":""}]
[{"$f":"IF(B37=\"\",\"\",SUBTOTAL(3,$B37:B37))","v":""}]
[{"$f":"IF(B38=\"\",\"\",SUBTOTAL(3,$B38:B38))","v":""}]

{"sheet":"15003","index":3,"n_rows":45,"n_cols":10,"rows_kept":45,"cut":false,"hidden":false,"merged":[[5,9,6,9],[4,0,4,1],[4,2,4,4],[4,6,4,7],[4,8,4,9],[5,0,6,0],[5,1,6,1],[5,2,5,4],[5,5,5,7],[5,8,6,8]]}
[]
[]
[null,null,null,null,null,null,null,null,"حد الطلب : ",{"$f":"VLOOKUP(G5,Reference!A:G,4,FALSE)/8","v":0}]
["اسم المجموعه /",{"$f":"VLOOKUP(G5,Reference!A:G,2,FALSE)","v":"زيوت"},null,null,null,null,null,null,"كمية الطلب : ",{"$f":"+J3*2","v":0}]
["اسم الصنف :",null,{"$f":"VLOOKUP(G5,Reference!A:G,3,FALSE)","v":"زيت باور مرسيدس 1 كجم"},null,null,"كود الصنف : ",15003]
["رقم المستند","التاريخ","الــــــــــــــــــوارد",null,null,"المنصــــــــــــــــــرف",null,null,"الرصيـــــد","ملاحظــــــات"]
[null,null,"مشتريات","الانتاج","مرتجع","التشغيل","الفروع","موردين"]
[120,"2018-04-01",2,4,1,2,3,6,{"$f":"+C8+D8+E8+-F8-G8-G8","v":-1},"رصيد اول المده "]
[11,"2018-08-01",10,12,5,7,2,5,{"$f":"+(I8+C9+D9+E9)-F9-G9-H9","v":12}]
[170,"2018-04-01",16,12,11,10,2,3,{"$f":"+(I9+C10+D10+E10)-F10-G10-H10","v":36}]
[null,null,null,null,null,null,null,null,36]
[null,null,null,null,null,null,null,null,36]
[null,null,null,null,null,null,null,null,36]
[null,null,null,null,null,null,null,null,36]
[null,null,null,null,null,null,null,null,36]
[null,null,null,null,null,null,null,null,36]
[null,null,null,null,null,null,null,null,36]
[null,null,null,null,null,null,null,null,36]
[null,null,null,null,null,null,null,null,36]
[null,null,null,null,null,null,null,null,36]
[null,null,null,null,null,null,null,null,36]
[null,null,null,null,null,null,null,null,36]
[null,null,null,null,null,null,null,null,36]
[null,null,null,null,null,null,null,null,36]
[null,null,null,null,null,null,null,null,36]
[null,null,null,null,null,null,null,null,36]
[null,null,null,null,null,null,null,null,36]
[null,null,null,null,null,null,null,null,36]
[null,null,null,null,null,null,null,null,36]
[null,null,null,null,null,null,null,null,36]
[null,null,null,null,null,null,null,null,36]
[null,null,null,null,null,null,null,null,36]
[null,null,null,null,null,null,null,null,36]
[null,null,null,null,null,null,null,null,36]
[null,null,null,null,null,null,null,null,36]
[null,null,null,null,null,null,null,null,36]
[null,null,null,null,null,null,null,null,36]
[null,null,null,null,null,null,null,null,36]
[null,null,null,null,null,null,null,null,36]
[null,null,null,null,null,null,null,null,36]
[null,null,null,null,null,null,null,null,36]
[null,null,null,null,null,null,null,null,36]
[null,null,null,null,null,null,null,null,36]
[null,null,null,null,null,null,null,null,36]
[null,null,null,null,null,null,null,null,36]

{"sheet":"1","index":4,"n_rows":45,"n_cols":10,"rows_kept":45,"cut":false,"hidden":false,"merged":[[4,0,4,1],[4,2,4,4],[4,6,4,7],[4,8,4,9],[5,0,6,0],[5,1,6,1],[5,2,5,4],[5,5,5,7],[5,8,6,8],[5,9,6,9]]}
[]
[]
[null,null,null,null,null,null,null,null,"حد الطلب : ",{"$f":"VLOOKUP(G5,Reference!A:G,4,FALSE)/8","v":0}]
["اسم المجموعه /",{"$f":"VLOOKUP(G5,Reference!A:G,2,FALSE)","v":"سولار"},null,null,null,null,null,null,"كمية الطلب : ",{"$f":"+J3*2","v":0}]
["اسم الصنف :",null,{"$f":"VLOOKUP(G5,Reference!A:G,3,FALSE)","v":"سولار"},null,null,"كود الصنف : ",1]
["رقم المستند","التاريخ","الــــــــــــــــــوارد",null,null,"المنصــــــــــــــــــرف",null,null,"الرصيـــــد","ملاحظــــــات"]
[null,null,"مشتريات","الانتاج","مرتجع","التشغيل","الفروع","موردين"]
[110,"2018-01-01",10,20,3,8,3,5,{"$f":"+C8+D8+E8+-F8-G8-G8","v":19},"رصيد اول المده "]
[150,"2018-01-01",10,20,50,18,12,6,{"$f":"+(I8+C9+D9+E9)-F9-G9-H9","v":63}]
[1000,"2018-06-01",10,20,30,40,50,60,{"$f":"+(I9+C10+D10+E10)-F10-G10-H10","v":-27}]
[null,null,null,null,null,null,null,null,-27]
[null,null,null,null,null,null,null,null,-27]
[null,null,null,null,null,null,null,null,-27]
[null,null,null,null,null,null,null,null,-27]
[null,null,null,null,null,null,null,null,-27]
[null,null,null,null,null,null,null,null,-27]
[null,null,null,null,null,null,null,null,-27]
[null,null,null,null,null,null,null,null,-27]
[null,null,null,null,null,null,null,null,-27]
[null,null,null,null,null,null,null,null,-27]
[null,null,null,null,null,null,null,null,-27]
[null,null,null,null,null,null,null,null,-27]
[null,null,null,null,null,null,null,null,-27]
[null,null,null,null,null,null,null,null,-27]
[null,null,null,null,null,null,null,null,-27]
[null,null,null,null,null,null,null,null,-27]
[null,null,null,null,null,null,null,null,-27]
[null,null,null,null,null,null,null,null,-27]
[null,null,null,null,null,null,null,null,-27]
[null,null,null,null,null,null,null,null,-27]
[null,null,null,null,null,null,null,null,-27]
[null,null,null,null,null,null,null,null,-27]
[null,null,null,null,null,null,null,null,-27]
[null,null,null,null,null,null,null,null,-27]
[null,null,null,null,null,null,null,null,-27]
[null,null,null,null,null,null,null,null,-27]
[null,null,null,null,null,null,null,null,-27]
[null,null,null,null,null,null,null,null,-27]
[null,null,null,null,null,null,null,null,-27]
[null,null,null,null,null,null,null,null,-27]
[null,null,null,null,null,null,null,null,-27]
[null,null,null,null,null,null,null,null,-27]
[null,null,null,null,null,null,null,null,-27]
[null,null,null,null,null,null,null,null,-27]
[null,null,null,null,null,null,null,null,-27]

{"sheet":"15004","index":5,"n_rows":45,"n_cols":10,"rows_kept":45,"cut":false,"hidden":false,"merged":[[4,0,4,1],[4,2,4,4],[4,6,4,7],[4,8,4,9],[5,0,6,0],[5,1,6,1],[5,2,5,4],[5,5,5,7],[5,8,6,8],[5,9,6,9]]}
[]
[]
[null,null,null,null,null,null,null,null,"حد الطلب : ",{"$f":"VLOOKUP(G5,Reference!A:G,4,FALSE)/8","v":0}]
["اسم المجموعه /",{"$f":"VLOOKUP(G5,Reference!A:G,2,FALSE)","v":"زيوت"},null,null,null,null,null,null,"كمية الطلب : ",{"$f":"+J3*2","v":0}]
["اسم الصنف :",null,{"$f":"VLOOKUP(G5,Reference!A:G,3,FALSE)","v":"زيت باور عادى 1 كجم"},null,null,"كود الصنف : ",15004]
["رقم المستند","التاريخ","الــــــــــــــــــوارد",null,null,"المنصــــــــــــــــــرف",null,null,"الرصيـــــد","ملاحظــــــات"]
[null,null,"مشتريات","الانتاج","مرتجع","التشغيل","الفروع","موردين"]
[170,"2018-04-01",8,1,7,9,4,5,{"$f":"+C8+D8+E8+-F8-G8-G8","v":-1},"رصيد اول المده "]
[null,null,null,null,null,null,null,null,{"$f":"+(I8+C9+D9+E9)-F9-G9-H9","v":-1}]
[null,null,null,null,null,null,null,null,{"$f":"+(I9+C10+D10+E10)-F10-G10-H10","v":-1}]
[null,null,null,null,null,null,null,null,-1]
[null,null,null,null,null,null,null,null,-1]
[null,null,null,null,null,null,null,null,-1]
[null,null,null,null,null,null,null,null,-1]
[null,null,null,null,null,null,null,null,-1]
[null,null,null,null,null,null,null,null,-1]
[null,null,null,null,null,null,null,null,-1]
[null,null,null,null,null,null,null,null,-1]
[null,null,null,null,null,null,null,null,-1]
[null,null,null,null,null,null,null,null,-1]
[null,null,null,null,null,null,null,null,-1]
[null,null,null,null,null,null,null,null,-1]
[null,null,null,null,null,null,null,null,-1]
[null,null,null,null,null,null,null,null,-1]
[null,null,null,null,null,null,null,null,-1]
[null,null,null,null,null,null,null,null,-1]
[null,null,null,null,null,null,null,null,-1]
[null,null,null,null,null,null,null,null,-1]
[null,null,null,null,null,null,null,null,-1]
[null,null,null,null,null,null,null,null,-1]
[null,null,null,null,null,null,null,null,-1]
[null,null,null,null,null,null,null,null,-1]
[null,null,null,null,null,null,null,null,-1]
[null,null,null,null,null,null,null,null,-1]
[null,null,null,null,null,null,null,null,-1]
[null,null,null,null,null,null,null,null,-1]
[null,null,null,null,null,null,null,null,-1]
[null,null,null,null,null,null,null,null,-1]
[null,null,null,null,null,null,null,null,-1]
[null,null,null,null,null,null,null,null,-1]
[null,null,null,null,null,null,null,null,-1]
[null,null,null,null,null,null,null,null,-1]
[null,null,null,null,null,null,null,null,-1]
[null,null,null,null,null,null,null,null,-1]
[null,null,null,null,null,null,null,null,-1]

{"sheet":"15005","index":6,"n_rows":45,"n_cols":10,"rows_kept":45,"cut":false,"hidden":false,"merged":[[4,0,4,1],[4,2,4,4],[4,6,4,7],[4,8,4,9],[5,0,6,0],[5,1,6,1],[5,2,5,4],[5,5,5,7],[5,8,6,8],[5,9,6,9]]}
[]
[]
[null,null,null,null,null,null,null,null,"حد الطلب : ",{"$f":"VLOOKUP(G5,Reference!A:G,4,FALSE)/8","v":0}]
["اسم المجموعه /",{"$f":"VLOOKUP(G5,Reference!A:G,2,FALSE)","v":"زيوت"},null,null,null,null,null,null,"كمية الطلب : ",{"$f":"+J3*2","v":0}]
["اسم الصنف :",null,{"$f":"VLOOKUP(G5,Reference!A:G,3,FALSE)","v":"زيت دبرياج مرسيدس 1 كجم"},null,null,"كود الصنف : ",15005]
["رقم المستند","التاريخ","الــــــــــــــــــوارد",null,null,"المنصــــــــــــــــــرف",null,null,"الرصيـــــد","ملاحظــــــات"]
[null,null,"مشتريات","الانتاج","مرتجع","التشغيل","الفروع","موردين"]
[null,null,null,null,null,null,null,null,{"$f":"+C8+D8+E8+-F8-G8-G8","v":0},"رصيد اول المده "]
[null,null,null,null,null,null,null,null,{"$f":"+(I8+C9+D9+E9)-F9-G9-H9","v":0}]
[null,null,null,null,null,null,null,null,{"$f":"+(I9+C10+D10+E10)-F10-G10-H10","v":0}]
[null,null,null,null,null,null,null,null,0]
[null,null,null,null,null,null,null,null,0]
[null,null,null,null,null,null,null,null,0]
[null,null,null,null,null,null,null,null,0]
[null,null,null,null,null,null,null,null,0]
[null,null,null,null,null,null,null,null,0]
[null,null,null,null,null,null,null,null,0]
[null,null,null,null,null,null,null,null,0]
[null,null,null,null,null,null,null,null,0]
[null,null,null,null,null,null,null,null,0]
[null,null,null,null,null,null,null,null,0]
[null,null,null,null,null,null,null,null,0]
[null,null,null,null,null,null,null,null,0]
[null,null,null,null,null,null,null,null,0]
[null,null,null,null,null,null,null,null,0]
[null,null,null,null,null,null,null,null,0]
[null,null,null,null,null,null,null,null,0]
[null,null,null,null,null,null,null,null,0]
[null,null,null,null,null,null,null,null,0]
[null,null,null,null,null,null,null,null,0]
[null,null,null,null,null,null,null,null,0]
[null,null,null,null,null,null,null,null,0]
[null,null,null,null,null,null,null,null,0]
[null,null,null,null,null,null,null,null,0]
[null,null,null,null,null,null,null,null,0]
[null,null,null,null,null,null,null,null,0]
[null,null,null,null,null,null,null,null,0]
[null,null,null,null,null,null,null,null,0]
[null,null,null,null,null,null,null,null,0]
[null,null,null,null,null,null,null,null,0]
[null,null,null,null,null,null,null,null,0]
[null,null,null,null,null,null,null,null,0]
[null,null,null,null,null,null,null,null,0]
[null,null,null,null,null,null,null,null,0]
[null,null,null,null,null,null,null,null,0]

{"sheet":"15006","index":7,"n_rows":45,"n_cols":10,"rows_kept":45,"cut":false,"hidden":false,"merged":[[4,0,4,1],[4,2,4,4],[4,6,4,7],[4,8,4,9],[5,0,6,0],[5,1,6,1],[5,2,5,4],[5,5,5,7],[5,8,6,8],[5,9,6,9]]}
[]
[]
[null,null,null,null,null,null,null,null,"حد الطلب : ",{"$f":"VLOOKUP(G5,Reference!A:G,4,FALSE)/8","v":0}]
["اسم المجموعه /",{"$f":"VLOOKUP(G5,Reference!A:G,2,FALSE)","v":"زيوت"},null,null,null,null,null,null,"كمية الطلب : ",{"$f":"+J3*2","v":0}]
["اسم الصنف :",null,{"$f":"VLOOKUP(G5,Reference!A:G,3,FALSE)","v":"زيت تروس 90W80 "},null,null,"كود الصنف : ",15006]
["رقم المستند","التاريخ","الــــــــــــــــــوارد",null,null,"المنصــــــــــــــــــرف",null,null,"الرصيـــــد","ملاحظــــــات"]
[null,null,"مشتريات","الانتاج","مرتجع","التشغيل","الفروع","موردين"]
[null,null,null,null,null,null,null,null,{"$f":"+C8+D8+E8+-F8-G8-G8","v":0},"رصيد اول المده "]
[null,null,null,null,null,null,null,null,{"$f":"+(I8+C9+D9+E9)-F9-G9-H9","v":0}]
[null,null,null,null,null,null,null,null,{"$f":"+(I9+C10+D10+E10)-F10-G10-H10","v":0}]
[null,null,null,null,null,null,null,null,0]
[null,null,null,null,null,null,null,null,0]
[null,null,null,null,null,null,null,null,0]
[null,null,null,null,null,null,null,null,0]
[null,null,null,null,null,null,null,null,0]
[null,null,null,null,null,null,null,null,0]
[null,null,null,null,null,null,null,null,0]
[null,null,null,null,null,null,null,null,0]
[null,null,null,null,null,null,null,null,0]
[null,null,null,null,null,null,null,null,0]
[null,null,null,null,null,null,null,null,0]
[null,null,null,null,null,null,null,null,0]
[null,null,null,null,null,null,null,null,0]
[null,null,null,null,null,null,null,null,0]
[null,null,null,null,null,null,null,null,0]
[null,null,null,null,null,null,null,null,0]
[null,null,null,null,null,null,null,null,0]
[null,null,null,null,null,null,null,null,0]
[null,null,null,null,null,null,null,null,0]
[null,null,null,null,null,null,null,null,0]
[null,null,null,null,null,null,null,null,0]
[null,null,null,null,null,null,null,null,0]
[null,null,null,null,null,null,null,null,0]
[null,null,null,null,null,null,null,null,0]
[null,null,null,null,null,null,null,null,0]
[null,null,null,null,null,null,null,null,0]
[null,null,null,null,null,null,null,null,0]
[null,null,null,null,null,null,null,null,0]
[null,null,null,null,null,null,null,null,0]
[null,null,null,null,null,null,null,null,0]
[null,null,null,null,null,null,null,null,0]
[null,null,null,null,null,null,null,null,0]
[null,null,null,null,null,null,null,null,0]
[null,null,null,null,null,null,null,null,0]
[null,null,null,null,null,null,null,null,0]

{"sheet":"15007","index":8,"n_rows":45,"n_cols":10,"rows_kept":45,"cut":false,"hidden":false,"merged":[[4,0,4,1],[4,2,4,4],[4,6,4,7],[4,8,4,9],[5,0,6,0],[5,1,6,1],[5,2,5,4],[5,5,5,7],[5,8,6,8],[5,9,6,9]]}
[]
[]
[null,null,null,null,null,null,null,null,"حد الطلب : ",{"$f":"VLOOKUP(G5,Reference!A:G,4,FALSE)/8","v":0}]
["اسم المجموعه /",{"$f":"VLOOKUP(G5,Reference!A:G,2,FALSE)","v":"زيوت"},null,null,null,null,null,null,"كمية الطلب : ",{"$f":"+J3*2","v":0}]
["اسم الصنف :",null,{"$f":"VLOOKUP(G5,Reference!A:G,3,FALSE)","v":"زيت موبيل سوبر mobile 20w50 "},null,null,"كود الصنف : ",15007]
["رقم المستند","التاريخ","الــــــــــــــــــوارد",null,null,"المنصــــــــــــــــــرف",null,null,"الرصيـــــد","ملاحظــــــات"]
[null,null,"مشتريات","الانتاج","مرتجع","التشغيل","الفروع","موردين"]
[180,"2018-05-01",10,2,3,7,2,5,{"$f":"+C8+D8+E8+-F8-G8-G8","v":4},"رصيد اول المده "]
[null,null,null,null,null,null,null,null,{"$f":"+(I8+C9+D9+E9)-F9-G9-H9","v":4}]
[null,null,null,null,null,null,null,null,{"$f":"+(I9+C10+D10+E10)-F10-G10-H10","v":4}]
[null,null,null,null,null,null,null,null,4]
[null,null,null,null,null,null,null,null,4]
[null,null,null,null,null,null,null,null,4]
[null,null,null,null,null,null,null,null,4]
[null,null,null,null,null,null,null,null,4]
[null,null,null,null,null,null,null,null,4]
[null,null,null,null,null,null,null,null,4]
[null,null,null,null,null,null,null,null,4]
[null,null,null,null,null,null,null,null,4]
[null,null,null,null,null,null,null,null,4]
[null,null,null,null,null,null,null,null,4]
[null,null,null,null,null,null,null,null,4]
[null,null,null,null,null,null,null,null,4]
[null,null,null,null,null,null,null,null,4]
[null,null,null,null,null,null,null,null,4]
[null,null,null,null,null,null,null,null,4]
[null,null,null,null,null,null,null,null,4]
[null,null,null,null,null,null,null,null,4]
[null,null,null,null,null,null,null,null,4]
[null,null,null,null,null,null,null,null,4]
[null,null,null,null,null,null,null,null,4]
[null,null,null,null,null,null,null,null,4]
[null,null,null,null,null,null,null,null,4]
[null,null,null,null,null,null,null,null,4]
[null,null,null,null,null,null,null,null,4]
[null,null,null,null,null,null,null,null,4]
[null,null,null,null,null,null,null,null,4]
[null,null,null,null,null,null,null,null,4]
[null,null,null,null,null,null,null,null,4]
[null,null,null,null,null,null,null,null,4]
[null,null,null,null,null,null,null,null,4]
[null,null,null,null,null,null,null,null,4]
[null,null,null,null,null,null,null,null,4]
[null,null,null,null,null,null,null,null,4]
[null,null,null,null,null,null,null,null,4]

{"sheet":"15008","index":9,"n_rows":45,"n_cols":10,"rows_kept":45,"cut":false,"hidden":false,"merged":[[4,0,4,1],[4,2,4,4],[4,6,4,7],[4,8,4,9],[5,0,6,0],[5,1,6,1],[5,2,5,4],[5,5,5,7],[5,8,6,8],[5,9,6,9]]}
[]
[]
[null,null,null,null,null,null,null,null,"حد الطلب : ",{"$f":"VLOOKUP(G5,Reference!A:G,4,FALSE)/8","v":0}]
["اسم المجموعه /",{"$f":"VLOOKUP(G5,Reference!A:G,2,FALSE)","v":"زيوت"},null,null,null,null,null,null,"كمية الطلب : ",{"$f":"+J3*2","v":0}]
["اسم الصنف :",null,{"$f":"VLOOKUP(G5,Reference!A:G,3,FALSE)","v":"زيت موبيل SH15w40   (20 لتر )"},null,null,"كود الصنف : ",15008]
["رقم المستند","التاريخ","الــــــــــــــــــوارد",null,null,"المنصــــــــــــــــــرف",null,null,"الرصيـــــد","ملاحظــــــات"]
[null,null,"مشتريات","الانتاج","مرتجع","التشغيل","الفروع","موردين"]
[null,null,null,null,null,null,null,null,{"$f":"+C8+D8+E8+-F8-G8-G8","v":0},"رصيد اول المده "]
[null,null,null,null,null,null,null,null,{"$f":"+(I8+C9+D9+E9)-F9-G9-H9","v":0}]
[null,null,null,null,null,null,null,null,{"$f":"+(I9+C10+D10+E10)-F10-G10-H10","v":0}]
[null,null,null,null,null,null,null,null,0]
[null,null,null,null,null,null,null,null,0]
[null,null,null,null,null,null,null,null,0]
[null,null,null,null,null,null,null,null,0]
[null,null,null,null,null,null,null,null,0]
[null,null,null,null,null,null,null,null,0]
[null,null,null,null,null,null,null,null,0]
[null,null,null,null,null,null,null,null,0]
[null,null,null,null,null,null,null,null,0]
[null,null,null,null,null,null,null,null,0]
[null,null,null,null,null,null,null,null,0]
[null,null,null,null,null,null,null,null,0]
[null,null,null,null,null,null,null,null,0]
[null,null,null,null,null,null,null,null,0]
[null,null,null,null,null,null,null,null,0]
[null,null,null,null,null,null,null,null,0]
[null,null,null,null,null,null,null,null,0]
[null,null,null,null,null,null,null,null,0]
[null,null,null,null,null,null,null,null,0]
[null,null,null,null,null,null,null,null,0]
[null,null,null,null,null,null,null,null,0]
[null,null,null,null,null,null,null,null,0]
[null,null,null,null,null,null,null,null,0]
[null,null,null,null,null,null,null,null,0]
[null,null,null,null,null,null,null,null,0]
[null,null,null,null,null,null,null,null,0]
[null,null,null,null,null,null,null,null,0]
[null,null,null,null,null,null,null,null,0]
[null,null,null,null,null,null,null,null,0]
[null,null,null,null,null,null,null,null,0]
[null,null,null,null,null,null,null,null,0]
[null,null,null,null,null,null,null,null,0]
[null,null,null,null,null,null,null,null,0]
[null,null,null,null,null,null,null,null,0]
[null,null,null,null,null,null,null,null,0]

{"sheet":"15009","index":10,"n_rows":45,"n_cols":10,"rows_kept":45,"cut":false,"hidden":false,"merged":[[4,0,4,1],[4,2,4,4],[4,6,4,7],[4,8,4,9],[5,0,6,0],[5,1,6,1],[5,2,5,4],[5,5,5,7],[5,8,6,8],[5,9,6,9]]}
[]
[]
[null,null,null,null,null,null,null,null,"حد الطلب : ",{"$f":"VLOOKUP(G5,Reference!A:G,4,FALSE)/8","v":0}]
["اسم المجموعه /",{"$f":"VLOOKUP(G5,Reference!A:G,2,FALSE)","v":"زيوت"},null,null,null,null,null,null,"كمية الطلب : ",{"$f":"+J3*2","v":0}]
["اسم الصنف :",null,{"$f":"VLOOKUP(G5,Reference!A:G,3,FALSE)","v":"زيت رمادى  SHC( 20 كجم ) "},null,null,"كود الصنف : ",15009]
["رقم المستند","التاريخ","الــــــــــــــــــوارد",null,null,"المنصــــــــــــــــــرف",null,null,"الرصيـــــد","ملاحظــــــات"]
[null,null,"مشتريات","الانتاج","مرتجع","التشغيل","الفروع","موردين"]
[null,null,null,null,null,null,null,null,{"$f":"+C8+D8+E8+-F8-G8-G8","v":0},"رصيد اول المده "]
[null,null,null,null,null,null,null,null,{"$f":"+(I8+C9+D9+E9)-F9-G9-H9","v":0}]
[null,null,null,null,null,null,null,null,{"$f":"+(I9+C10+D10+E10)-F10-G10-H10","v":0}]
[null,null,null,null,null,null,null,null,0]
[null,null,null,null,null,null,null,null,0]
[null,null,null,null,null,null,null,null,0]
[null,null,null,null,null,null,null,null,0]
[null,null,null,null,null,null,null,null,0]
[null,null,null,null,null,null,null,null,0]
[null,null,null,null,null,null,null,null,0]
[null,null,null,null,null,null,null,null,0]
[null,null,null,null,null,null,null,null,0]
[null,null,null,null,null,null,null,null,0]
[null,null,null,null,null,null,null,null,0]
[null,null,null,null,null,null,null,null,0]
[null,null,null,null,null,null,null,null,0]
[null,null,null,null,null,null,null,null,0]
[null,null,null,null,null,null,null,null,0]
[null,null,null,null,null,null,null,null,0]
[null,null,null,null,null,null,null,null,0]
[null,null,null,null,null,null,null,null,0]
[null,null,null,null,null,null,null,null,0]
[null,null,null,null,null,null,null,null,0]
[null,null,null,null,null,null,null,null,0]
[null,null,null,null,null,null,null,null,0]
[null,null,null,null,null,null,null,null,0]
[null,null,null,null,null,null,null,null,0]
[null,null,null,null,null,null,null,null,0]
[null,null,null,null,null,null,null,null,0]
[null,null,null,null,null,null,null,null,0]
[null,null,null,null,null,null,null,null,0]
[null,null,null,null,null,null,null,null,0]
[null,null,null,null,null,null,null,null,0]
[null,null,null,null,null,null,null,null,0]
[null,null,null,null,null,null,null,null,0]
[null,null,null,null,null,null,null,null,0]
[null,null,null,null,null,null,null,null,0]
[null,null,null,null,null,null,null,null,0]

{"sheet":"15000","index":11,"n_rows":45,"n_cols":10,"rows_kept":45,"cut":false,"hidden":false,"merged":[[4,0,4,1],[4,2,4,4],[4,6,4,7],[4,8,4,9],[5,0,6,0],[5,1,6,1],[5,2,5,4],[5,5,5,7],[5,8,6,8],[5,9,6,9]]}
[]
[]
[null,null,null,null,null,null,null,null,"حد الطلب : ",{"$f":"VLOOKUP(G5,Reference!A:G,4,FALSE)/8","v":0}]
["اسم المجموعه /",{"$f":"VLOOKUP(G5,Reference!A:G,2,FALSE)","v":"زيوت"},null,null,null,null,null,null,"كمية الطلب : ",{"$f":"+J3*2","v":0}]
["اسم الصنف :",null,{"$f":"VLOOKUP(G5,Reference!A:G,3,FALSE)","v":"زيت هيدروليك 68"},null,null,"كود الصنف : ",15000]
["رقم المستند","التاريخ","الــــــــــــــــــوارد",null,null,"المنصــــــــــــــــــرف",null,null,"الرصيـــــد","ملاحظــــــات"]
[null,null,"مشتريات","الانتاج","مرتجع","التشغيل","الفروع","موردين"]
[null,null,null,null,null,null,null,null,{"$f":"+C8+D8+E8+-F8-G8-G8","v":0},"رصيد اول المده "]
[null,null,null,null,null,null,null,null,{"$f":"+(I8+C9+D9+E9)-F9-G9-H9","v":0}]
[null,null,null,null,null,null,null,null,{"$f":"+(I9+C10+D10+E10)-F10-G10-H10","v":0}]
[null,null,null,null,null,null,null,null,0]
[null,null,null,null,null,null,null,null,0]
[null,null,null,null,null,null,null,null,0]
[null,null,null,null,null,null,null,null,0]
[null,null,null,null,null,null,null,null,0]
[null,null,null,null,null,null,null,null,0]
[null,null,null,null,null,null,null,null,0]
[null,null,null,null,null,null,null,null,0]
[null,null,null,null,null,null,null,null,0]
[null,null,null,null,null,null,null,null,0]
[null,null,null,null,null,null,null,null,0]
[null,null,null,null,null,null,null,null,0]
[null,null,null,null,null,null,null,null,0]
[null,null,null,null,null,null,null,null,0]
[null,null,null,null,null,null,null,null,0]
[null,null,null,null,null,null,null,null,0]
[null,null,null,null,null,null,null,null,0]
[null,null,null,null,null,null,null,null,0]
[null,null,null,null,null,null,null,null,0]
[null,null,null,null,null,null,null,null,0]
[null,null,null,null,null,null,null,null,0]
[null,null,null,null,null,null,null,null,0]
[null,null,null,null,null,null,null,null,0]
[null,null,null,null,null,null,null,null,0]
[null,null,null,null,null,null,null,null,0]
[null,null,null,null,null,null,null,null,0]
[null,null,null,null,null,null,null,null,0]
[null,null,null,null,null,null,null,null,0]
[null,null,null,null,null,null,null,null,0]
[null,null,null,null,null,null,null,null,0]
[null,null,null,null,null,null,null,null,0]
[null,null,null,null,null,null,null,null,0]
[null,null,null,null,null,null,null,null,0]
[null,null,null,null,null,null,null,null,0]
[null,null,null,null,null,null,null,null,0]

{"sheet":"15011","index":12,"n_rows":45,"n_cols":10,"rows_kept":45,"cut":false,"hidden":false,"merged":[[4,0,4,1],[4,2,4,4],[4,6,4,7],[4,8,4,9],[5,0,6,0],[5,1,6,1],[5,2,5,4],[5,5,5,7],[5,8,6,8],[5,9,6,9]]}
[]
[]
[null,null,null,null,null,null,null,null,"حد الطلب : ",{"$f":"VLOOKUP(G5,Reference!A:G,4,FALSE)/8","v":0}]
["اسم المجموعه /",{"$f":"VLOOKUP(G5,Reference!A:G,2,FALSE)","v":"زيوت"},null,null,null,null,null,null,"كمية الطلب : ",{"$f":"+J3*2","v":0}]
["اسم الصنف :",null,{"$f":"VLOOKUP(G5,Reference!A:G,3,FALSE)","v":"زيت تسخين 100  ( محطات الاسفلت ) 0 "},null,null,"كود الصنف : ",15011]
["رقم المستند","التاريخ","الــــــــــــــــــوارد",null,null,"المنصــــــــــــــــــرف",null,null,"الرصيـــــد","ملاحظــــــات"]
[null,null,"مشتريات","الانتاج","مرتجع","التشغيل","الفروع","موردين"]
[null,null,null,null,null,null,null,null,{"$f":"+C8+D8+E8+-F8-G8-G8","v":0},"رصيد اول المده "]
[null,null,null,null,null,null,null,null,{"$f":"+(I8+C9+D9+E9)-F9-G9-H9","v":0}]
[null,null,null,null,null,null,null,null,{"$f":"+(I9+C10+D10+E10)-F10-G10-H10","v":0}]
[null,null,null,null,null,null,null,null,0]
[null,null,null,null,null,null,null,null,0]
[null,null,null,null,null,null,null,null,0]
[null,null,null,null,null,null,null,null,0]
[null,null,null,null,null,null,null,null,0]
[null,null,null,null,null,null,null,null,0]
[null,null,null,null,null,null,null,null,0]
[null,null,null,null,null,null,null,null,0]
[null,null,null,null,null,null,null,null,0]
[null,null,null,null,null,null,null,null,0]
[null,null,null,null,null,null,null,null,0]
[null,null,null,null,null,null,null,null,0]
[null,null,null,null,null,null,null,null,0]
[null,null,null,null,null,null,null,null,0]
[null,null,null,null,null,null,null,null,0]
[null,null,null,null,null,null,null,null,0]
[null,null,null,null,null,null,null,null,0]
[null,null,null,null,null,null,null,null,0]
[null,null,null,null,null,null,null,null,0]
[null,null,null,null,null,null,null,null,0]
[null,null,null,null,null,null,null,null,0]
[null,null,null,null,null,null,null,null,0]
[null,null,null,null,null,null,null,null,0]
[null,null,null,null,null,null,null,null,0]
[null,null,null,null,null,null,null,null,0]
[null,null,null,null,null,null,null,null,0]
[null,null,null,null,null,null,null,null,0]
[null,null,null,null,null,null,null,null,0]
[null,null,null,null,null,null,null,null,0]
[null,null,null,null,null,null,null,null,0]
[null,null,null,null,null,null,null,null,0]
[null,null,null,null,null,null,null,null,0]
[null,null,null,null,null,null,null,null,0]
[null,null,null,null,null,null,null,null,0]
[null,null,null,null,null,null,null,null,0]

{"sheet":"15020","index":13,"n_rows":45,"n_cols":10,"rows_kept":45,"cut":false,"hidden":false,"merged":[[4,0,4,1],[4,2,4,4],[4,6,4,7],[4,8,4,9],[5,0,6,0],[5,1,6,1],[5,2,5,4],[5,5,5,7],[5,8,6,8],[5,9,6,9]]}
[]
[]
[null,null,null,null,null,null,null,null,"حد الطلب : ",{"$f":"VLOOKUP(G5,Reference!A:G,4,FALSE)/8","v":0}]
["اسم المجموعه /",{"$f":"VLOOKUP(G5,Reference!A:G,2,FALSE)","v":"زيوت"},null,null,null,null,null,null,"كمية الطلب : ",{"$f":"+J3*2","v":0}]
["اسم الصنف :",null,{"$f":"VLOOKUP(G5,Reference!A:G,3,FALSE)","v":"زيت موبيل سوبر 1000"},null,null,"كود الصنف : ",15020]
["رقم المستند","التاريخ","الــــــــــــــــــوارد",null,null,"المنصــــــــــــــــــرف",null,null,"الرصيـــــد","ملاحظــــــات"]
[null,null,"مشتريات","الانتاج","مرتجع","التشغيل","الفروع","موردين"]
[null,null,null,null,null,null,null,null,{"$f":"+C8+D8+E8+-F8-G8-G8","v":0},"رصيد اول المده "]
[null,null,null,null,null,null,null,null,{"$f":"+(I8+C9+D9+E9)-F9-G9-H9","v":0}]
[null,null,null,null,null,null,null,null,{"$f":"+(I9+C10+D10+E10)-F10-G10-H10","v":0}]
[null,null,null,null,null,null,null,null,0]
[null,null,null,null,null,null,null,null,0]
[null,null,null,null,null,null,null,null,0]
[null,null,null,null,null,null,null,null,0]
[null,null,null,null,null,null,null,null,0]
[null,null,null,null,null,null,null,null,0]
[null,null,null,null,null,null,null,null,0]
[null,null,null,null,null,null,null,null,0]
[null,null,null,null,null,null,null,null,0]
[null,null,null,null,null,null,null,null,0]
[null,null,null,null,null,null,null,null,0]
[null,null,null,null,null,null,null,null,0]
[null,null,null,null,null,null,null,null,0]
[null,null,null,null,null,null,null,null,0]
[null,null,null,null,null,null,null,null,0]
[null,null,null,null,null,null,null,null,0]
[null,null,null,null,null,null,null,null,0]
[null,null,null,null,null,null,null,null,0]
[null,null,null,null,null,null,null,null,0]
[null,null,null,null,null,null,null,null,0]
[null,null,null,null,null,null,null,null,0]
[null,null,null,null,null,null,null,null,0]
[null,null,null,null,null,null,null,null,0]
[null,null,null,null,null,null,null,null,0]
[null,null,null,null,null,null,null,null,0]
[null,null,null,null,null,null,null,null,0]
[null,null,null,null,null,null,null,null,0]
[null,null,null,null,null,null,null,null,0]
[null,null,null,null,null,null,null,null,0]
[null,null,null,null,null,null,null,null,0]
[null,null,null,null,null,null,null,null,0]
[null,null,null,null,null,null,null,null,0]
[null,null,null,null,null,null,null,null,0]
[null,null,null,null,null,null,null,null,0]
[null,null,null,null,null,null,null,null,0]

{"sheet":"15021","index":14,"n_rows":45,"n_cols":10,"rows_kept":45,"cut":false,"hidden":false,"merged":[[4,0,4,1],[4,2,4,4],[4,6,4,7],[4,8,4,9],[5,0,6,0],[5,1,6,1],[5,2,5,4],[5,5,5,7],[5,8,6,8],[5,9,6,9]]}
[]
[]
[null,null,null,null,null,null,null,null,"حد الطلب : ",{"$f":"VLOOKUP(G5,Reference!A:G,4,FALSE)/8","v":0}]
["اسم المجموعه /",{"$f":"VLOOKUP(G5,Reference!A:G,2,FALSE)","v":"زيوت"},null,null,null,null,null,null,"كمية الطلب : ",{"$f":"+J3*2","v":0}]
["اسم الصنف :",null,{"$f":"VLOOKUP(G5,Reference!A:G,3,FALSE)","v":"زيت موبيل دلفاك shc-5 w 40."},null,null,"كود الصنف : ",15021]
["رقم المستند","التاريخ","الــــــــــــــــــوارد",null,null,"المنصــــــــــــــــــرف",null,null,"الرصيـــــد","ملاحظــــــات"]
[null,null,"مشتريات","الانتاج","مرتجع","التشغيل","الفروع","موردين"]
[null,null,null,null,null,null,null,null,{"$f":"+C8+D8+E8+-F8-G8-G8","v":0},"رصيد اول المده "]
[null,null,null,null,null,null,null,null,{"$f":"+(I8+C9+D9+E9)-F9-G9-H9","v":0}]
[null,null,null,null,null,null,null,null,{"$f":"+(I9+C10+D10+E10)-F10-G10-H10","v":0}]
[null,null,null,null,null,null,null,null,0]
[null,null,null,null,null,null,null,null,0]
[null,null,null,null,null,null,null,null,0]
[null,null,null,null,null,null,null,null,0]
[null,null,null,null,null,null,null,null,0]
[null,null,null,null,null,null,null,null,0]
[null,null,null,null,null,null,null,null,0]
[null,null,null,null,null,null,null,null,0]
[null,null,null,null,null,null,null,null,0]
[null,null,null,null,null,null,null,null,0]
[null,null,null,null,null,null,null,null,0]
[null,null,null,null,null,null,null,null,0]
[null,null,null,null,null,null,null,null,0]
[null,null,null,null,null,null,null,null,0]
[null,null,null,null,null,null,null,null,0]
[null,null,null,null,null,null,null,null,0]
[null,null,null,null,null,null,null,null,0]
[null,null,null,null,null,null,null,null,0]
[null,null,null,null,null,null,null,null,0]
[null,null,null,null,null,null,null,null,0]
[null,null,null,null,null,null,null,null,0]
[null,null,null,null,null,null,null,null,0]
[null,null,null,null,null,null,null,null,0]
[null,null,null,null,null,null,null,null,0]
[null,null,null,null,null,null,null,null,0]
[null,null,null,null,null,null,null,null,0]
[null,null,null,null,null,null,null,null,0]
[null,null,null,null,null,null,null,null,0]
[null,null,null,null,null,null,null,null,0]
[null,null,null,null,null,null,null,null,0]
[null,null,null,null,null,null,null,null,0]
[null,null,null,null,null,null,null,null,0]
[null,null,null,null,null,null,null,null,0]
[null,null,null,null,null,null,null,null,0]
[null,null,null,null,null,null,null,null,0]

{"sheet":"15019","index":15,"n_rows":45,"n_cols":10,"rows_kept":45,"cut":false,"hidden":false,"merged":[[4,0,4,1],[4,2,4,4],[4,6,4,7],[4,8,4,9],[5,0,6,0],[5,1,6,1],[5,2,5,4],[5,5,5,7],[5,8,6,8],[5,9,6,9]]}
[]
[]
[null,null,null,null,null,null,null,null,"حد الطلب : ",{"$f":"VLOOKUP(G5,Reference!A:G,4,FALSE)/8","v":0}]
["اسم المجموعه /",{"$f":"VLOOKUP(G5,Reference!A:G,2,FALSE)","v":"زيوت"},null,null,null,null,null,null,"كمية الطلب : ",{"$f":"+J3*2","v":0}]
["اسم الصنف :",null,{"$f":"VLOOKUP(G5,Reference!A:G,3,FALSE)","v":"زيت موبيل جركن 20 لتر  15w40"},null,null,"كود الصنف : ",15019]
["رقم المستند","التاريخ","الــــــــــــــــــوارد",null,null,"المنصــــــــــــــــــرف",null,null,"الرصيـــــد","ملاحظــــــات"]
[null,null,"مشتريات","الانتاج","مرتجع","التشغيل","الفروع","موردين"]
[null,null,null,null,null,null,null,null,{"$f":"+C8+D8+E8+-F8-G8-G8","v":0},"رصيد اول المده "]
[null,null,null,null,null,null,null,null,{"$f":"+(I8+C9+D9+E9)-F9-G9-H9","v":0}]
[null,null,null,null,null,null,null,null,{"$f":"+(I9+C10+D10+E10)-F10-G10-H10","v":0}]
[null,null,null,null,null,null,null,null,0]
[null,null,null,null,null,null,null,null,0]
[null,null,null,null,null,null,null,null,0]
[null,null,null,null,null,null,null,null,0]
[null,null,null,null,null,null,null,null,0]
[null,null,null,null,null,null,null,null,0]
[null,null,null,null,null,null,null,null,0]
[null,null,null,null,null,null,null,null,0]
[null,null,null,null,null,null,null,null,0]
[null,null,null,null,null,null,null,null,0]
[null,null,null,null,null,null,null,null,0]
[null,null,null,null,null,null,null,null,0]
[null,null,null,null,null,null,null,null,0]
[null,null,null,null,null,null,null,null,0]
[null,null,null,null,null,null,null,null,0]
[null,null,null,null,null,null,null,null,0]
[null,null,null,null,null,null,null,null,0]
[null,null,null,null,null,null,null,null,0]
[null,null,null,null,null,null,null,null,0]
[null,null,null,null,null,null,null,null,0]
[null,null,null,null,null,null,null,null,0]
[null,null,null,null,null,null,null,null,0]
[null,null,null,null,null,null,null,null,0]
[null,null,null,null,null,null,null,null,0]
[null,null,null,null,null,null,null,null,0]
[null,null,null,null,null,null,null,null,0]
[null,null,null,null,null,null,null,null,0]
[null,null,null,null,null,null,null,null,0]
[null,null,null,null,null,null,null,null,0]
[null,null,null,null,null,null,null,null,0]
[null,null,null,null,null,null,null,null,0]
[null,null,null,null,null,null,null,null,0]
[null,null,null,null,null,null,null,null,0]
[null,null,null,null,null,null,null,null,0]
[null,null,null,null,null,null,null,null,0]

{"sheet":"15022","index":16,"n_rows":45,"n_cols":10,"rows_kept":45,"cut":false,"hidden":false,"merged":[[4,0,4,1],[4,2,4,4],[4,6,4,7],[4,8,4,9],[5,0,6,0],[5,1,6,1],[5,2,5,4],[5,5,5,7],[5,8,6,8],[5,9,6,9]]}
[]
[]
[null,null,null,null,null,null,null,null,"حد الطلب : ",{"$f":"VLOOKUP(G5,Reference!A:G,4,FALSE)/8","v":0}]
["اسم المجموعه /",{"$f":"VLOOKUP(G5,Reference!A:G,2,FALSE)","v":"زيوت"},null,null,null,null,null,null,"كمية الطلب : ",{"$f":"+J3*2","v":0}]
["اسم الصنف :",null,{"$f":"VLOOKUP(G5,Reference!A:G,3,FALSE)","v":"زيت فتيس TDT50 "},null,null,"كود الصنف : ",15022]
["رقم المستند","التاريخ","الــــــــــــــــــوارد",null,null,"المنصــــــــــــــــــرف",null,null,"الرصيـــــد","ملاحظــــــات"]
[null,null,"مشتريات","الانتاج","مرتجع","التشغيل","الفروع","موردين"]
[null,null,null,null,null,null,null,null,{"$f":"+C8+D8+E8+-F8-G8-G8","v":0},"رصيد اول المده "]
[null,null,null,null,null,null,null,null,{"$f":"+(I8+C9+D9+E9)-F9-G9-H9","v":0}]
[null,null,null,null,null,null,null,null,{"$f":"+(I9+C10+D10+E10)-F10-G10-H10","v":0}]
[null,null,null,null,null,null,null,null,0]
[null,null,null,null,null,null,null,null,0]
[null,null,null,null,null,null,null,null,0]
[null,null,null,null,null,null,null,null,0]
[null,null,null,null,null,null,null,null,0]
[null,null,null,null,null,null,null,null,0]
[null,null,null,null,null,null,null,null,0]
[null,null,null,null,null,null,null,null,0]
[null,null,null,null,null,null,null,null,0]
[null,null,null,null,null,null,null,null,0]
[null,null,null,null,null,null,null,null,0]
[null,null,null,null,null,null,null,null,0]
[null,null,null,null,null,null,null,null,0]
[null,null,null,null,null,null,null,null,0]
[null,null,null,null,null,null,null,null,0]
[null,null,null,null,null,null,null,null,0]
[null,null,null,null,null,null,null,null,0]
[null,null,null,null,null,null,null,null,0]
[null,null,null,null,null,null,null,null,0]
[null,null,null,null,null,null,null,null,0]
[null,null,null,null,null,null,null,null,0]
[null,null,null,null,null,null,null,null,0]
[null,null,null,null,null,null,null,null,0]
[null,null,null,null,null,null,null,null,0]
[null,null,null,null,null,null,null,null,0]
[null,null,null,null,null,null,null,null,0]
[null,null,null,null,null,null,null,null,0]
[null,null,null,null,null,null,null,null,0]
[null,null,null,null,null,null,null,null,0]
[null,null,null,null,null,null,null,null,0]
[null,null,null,null,null,null,null,null,0]
[null,null,null,null,null,null,null,null,0]
[null,null,null,null,null,null,null,null,0]
[null,null,null,null,null,null,null,null,0]
[null,null,null,null,null,null,null,null,0]

{"sheet":"15025","index":17,"n_rows":45,"n_cols":10,"rows_kept":45,"cut":false,"hidden":false,"merged":[[4,0,4,1],[4,2,4,4],[4,6,4,7],[4,8,4,9],[5,0,6,0],[5,1,6,1],[5,2,5,4],[5,5,5,7],[5,8,6,8],[5,9,6,9]]}
[]
[]
[null,null,null,null,null,null,null,null,"حد الطلب : ",{"$f":"VLOOKUP(G5,Reference!A:G,4,FALSE)/8","v":0}]
["اسم المجموعه /",{"$f":"VLOOKUP(G5,Reference!A:G,2,FALSE)","v":"زيوت"},null,null,null,null,null,null,"كمية الطلب : ",{"$f":"+J3*2","v":0}]
["اسم الصنف :",null,{"$f":"VLOOKUP(G5,Reference!A:G,3,FALSE)","v":"زيت MX 15-40 دلفاك"},null,null,"كود الصنف : ",15025]
["رقم المستند","التاريخ","الــــــــــــــــــوارد",null,null,"المنصــــــــــــــــــرف",null,null,"الرصيـــــد","ملاحظــــــات"]
[null,null,"مشتريات","الانتاج","مرتجع","التشغيل","الفروع","موردين"]
[null,null,null,null,null,null,null,null,{"$f":"+C8+D8+E8+-F8-G8-G8","v":0},"رصيد اول المده "]
[null,null,null,null,null,null,null,null,{"$f":"+(I8+C9+D9+E9)-F9-G9-H9","v":0}]
[null,null,null,null,null,null,null,null,{"$f":"+(I9+C10+D10+E10)-F10-G10-H10","v":0}]
[null,null,null,null,null,null,null,null,0]
[null,null,null,null,null,null,null,null,0]
[null,null,null,null,null,null,null,null,0]
[null,null,null,null,null,null,null,null,0]
[null,null,null,null,null,null,null,null,0]
[null,null,null,null,null,null,null,null,0]
[null,null,null,null,null,null,null,null,0]
[null,null,null,null,null,null,null,null,0]
[null,null,null,null,null,null,null,null,0]
[null,null,null,null,null,null,null,null,0]
[null,null,null,null,null,null,null,null,0]
[null,null,null,null,null,null,null,null,0]
[null,null,null,null,null,null,null,null,0]
[null,null,null,null,null,null,null,null,0]
[null,null,null,null,null,null,null,null,0]
[null,null,null,null,null,null,null,null,0]
[null,null,null,null,null,null,null,null,0]
[null,null,null,null,null,null,null,null,0]
[null,null,null,null,null,null,null,null,0]
[null,null,null,null,null,null,null,null,0]
[null,null,null,null,null,null,null,null,0]
[null,null,null,null,null,null,null,null,0]
[null,null,null,null,null,null,null,null,0]
[null,null,null,null,null,null,null,null,0]
[null,null,null,null,null,null,null,null,0]
[null,null,null,null,null,null,null,null,0]
[null,null,null,null,null,null,null,null,0]
[null,null,null,null,null,null,null,null,0]
[null,null,null,null,null,null,null,null,0]
[null,null,null,null,null,null,null,null,0]
[null,null,null,null,null,null,null,null,0]
[null,null,null,null,null,null,null,null,0]
[null,null,null,null,null,null,null,null,0]
[null,null,null,null,null,null,null,null,0]
[null,null,null,null,null,null,null,null,0]

{"sheet":"18005","index":18,"n_rows":45,"n_cols":10,"rows_kept":45,"cut":false,"hidden":false,"merged":[[4,0,4,1],[4,2,4,4],[4,6,4,7],[4,8,4,9],[5,0,6,0],[5,1,6,1],[5,2,5,4],[5,5,5,7],[5,8,6,8],[5,9,6,9]]}
[]
[]
[null,null,null,null,null,null,null,null,"حد الطلب : ",{"$f":"VLOOKUP(G5,Reference!A:G,4,FALSE)/8","v":0}]
["اسم المجموعه /",{"$f":"VLOOKUP(G5,Reference!A:G,2,FALSE)","v":"شحوم"},null,null,null,null,null,null,"كمية الطلب : ",{"$f":"+J3*2","v":0}]
["اسم الصنف :",null,{"$f":"VLOOKUP(G5,Reference!A:G,3,FALSE)","v":"شحم موبيل MP"},null,null,"كود الصنف : ",18005]
["رقم المستند","التاريخ","الــــــــــــــــــوارد",null,null,"المنصــــــــــــــــــرف",null,null,"الرصيـــــد","ملاحظــــــات"]
[null,null,"مشتريات","الانتاج","مرتجع","التشغيل","الفروع","موردين"]
[null,null,null,null,null,null,null,null,{"$f":"+C8+D8+E8+-F8-G8-G8","v":0},"رصيد اول المده "]
[null,null,null,null,null,null,null,null,{"$f":"+(I8+C9+D9+E9)-F9-G9-H9","v":0}]
[null,null,null,null,null,null,null,null,{"$f":"+(I9+C10+D10+E10)-F10-G10-H10","v":0}]
[null,null,null,null,null,null,null,null,0]
[null,null,null,null,null,null,null,null,0]
[null,null,null,null,null,null,null,null,0]
[null,null,null,null,null,null,null,null,0]
[null,null,null,null,null,null,null,null,0]
[null,null,null,null,null,null,null,null,0]
[null,null,null,null,null,null,null,null,0]
[null,null,null,null,null,null,null,null,0]
[null,null,null,null,null,null,null,null,0]
[null,null,null,null,null,null,null,null,0]
[null,null,null,null,null,null,null,null,0]
[null,null,null,null,null,null,null,null,0]
[null,null,null,null,null,null,null,null,0]
[null,null,null,null,null,null,null,null,0]
[null,null,null,null,null,null,null,null,0]
[null,null,null,null,null,null,null,null,0]
[null,null,null,null,null,null,null,null,0]
[null,null,null,null,null,null,null,null,0]
[null,null,null,null,null,null,null,null,0]
[null,null,null,null,null,null,null,null,0]
[null,null,null,null,null,null,null,null,0]
[null,null,null,null,null,null,null,null,0]
[null,null,null,null,null,null,null,null,0]
[null,null,null,null,null,null,null,null,0]
[null,null,null,null,null,null,null,null,0]
[null,null,null,null,null,null,null,null,0]
[null,null,null,null,null,null,null,null,0]
[null,null,null,null,null,null,null,null,0]
[null,null,null,null,null,null,null,null,0]
[null,null,null,null,null,null,null,null,0]
[null,null,null,null,null,null,null,null,0]
[null,null,null,null,null,null,null,null,0]
[null,null,null,null,null,null,null,null,0]
[null,null,null,null,null,null,null,null,0]
[null,null,null,null,null,null,null,null,0]